Body Name,Body,Service Division Label,Service Division Code,Organisational Unit,Expenditure Category,Expenditure Code,CIPFA detailed expediture type,CIPFA detailed expediture code,Narrative,Date,Transaction number,Net Amount,Capital and Revenue,Supplier Name,Supplier ID
Chorley Borough Council,http://statistics.data.gov.uk/id/local-authority/30UE,Homelessness,1075,Early Intervention,Computer Software-Maintenance,40107,Communication and Computing,5028,Provision of services defined in AFR: 2445 - CBL: SSL security on test site for Places for People from 01/07/2016 to 30/06/2017,12/10/2016,116149,25.00,Revenue,Abritas Ltd,47473
Chorley Borough Council,http://statistics.data.gov.uk/id/local-authority/30UE,Homelessness,1075,Early Intervention,Computer Software-Maintenance,40107,Communication and Computing,5028,Provision of services as defined in AFR: 2445 - CBL: Enhanced disaster recovery service fee from 01/07/2016 to 30/06/2017,12/10/2016,116149,634.00,Revenue,Abritas Ltd,47473
Chorley Borough Council,http://statistics.data.gov.uk/id/local-authority/30UE,Homelessness,1075,Early Intervention,Miscellaneous Expenses,40200,Miscellaneous Expenses,5034,Provision of services as defined in AFR: 2439 - CBL: SSL security on test site for Chorley Community Housing from 01/07/2016 ,14/10/2016,116197,25.00,Revenue,Abritas Ltd,47473
Chorley Borough Council,http://statistics.data.gov.uk/id/local-authority/30UE,Homelessness,1075,Early Intervention,Computer Software-Maintenance,40107,Communication and Computing,5028,Provision of services as defined in AFR: 2439 - CBL: Enhanced disaster recovery service fee from 01/07/2016 to 30/06/2017,14/10/2016,116197,634.00,Revenue,Abritas Ltd,47473
Chorley Borough Council,http://statistics.data.gov.uk/id/local-authority/30UE,Homelessness,1075,Early Intervention,Computer Software-Maintenance,40107,Communication and Computing,5028,Provision of services as defined in AFR: 2091 - HOM & TA EXP: Hosting fee from 01/10/2016 to 30/09/2017. Including,14/10/2016,116198,843.00,Revenue,Abritas Ltd,47473
Chorley Borough Council,http://statistics.data.gov.uk/id/local-authority/30UE,Homelessness,1075,Early Intervention,Computer Software-Maintenance,40107,Communication and Computing,5028,Provision of services as defined in AFR: 2092 - HOM & TA EXP: Partner Support Plan from 01/10/2016 to 30/09/2017. ,14/10/2016,116198,"2,951.00",Revenue,Abritas Ltd,47473
Chorley Borough Council,http://statistics.data.gov.uk/id/local-authority/30UE,Homelessness,1075,Early Intervention,Computer Software-Maintenance,40107,Communication and Computing,5028,Provision of services as defined in AFR: 2092 - HOM & TA EXP: Annual service charg relating use of the TA expenditure module,14/10/2016,116198,"5,141.00",Revenue,Abritas Ltd,47473
Chorley Borough Council,http://statistics.data.gov.uk/id/local-authority/30UE,Democratic Represent and  Mgnt,1007,Policy & Governance,Other Fees,40212,Miscellaneous Expenses,5034,Bar fees for October 2016.,28/10/2016,116572,260.00,Revenue,Ace Bars Ltd,54338
Chorley Borough Council,http://statistics.data.gov.uk/id/local-authority/30UE,Unapportionable Central OHeads,1009,Policy & Governance,Rent/Hire Of Premises,20017,Premises Rents,5007,Room Hire & Catering: The Banqueting Suite at Birmingham Council House,12/10/2016,116175,"2,670.95",Revenue,Acivico,75542
Chorley Borough Council,http://statistics.data.gov.uk/id/local-authority/30UE,Business Support,1095,Business Development & Growth,Grants To Other Organisations,40127,Grants and Subscriptions,5031,sib grant,12/10/2016,116133,250.00,Revenue,NAME REDACTED,76301
Chorley Borough Council,http://statistics.data.gov.uk/id/local-authority/30UE,Development Control,1091,Customer & Digital,Consultants` Fees,40077,Services,5027,Provisional Agriculture Planning Advice,28/10/2016,116553,"1,000.00",Revenue,ADAS UK Limited,16930
Chorley Borough Council,http://statistics.data.gov.uk/id/local-authority/30UE,Central Support Services,1009,Customer & Digital,Miscellaneous Expenses,40200,Miscellaneous Expenses,5034,Carryout lifting and relaying of crazy paving at Fairclough memorial garden as per your quotation.,14/10/2016,116151,"1,750.00",Revenue,Adlington Dry Stone Walling,63372
Chorley Borough Council,http://statistics.data.gov.uk/id/local-authority/30UE,Central Support Services,1009,Customer & Digital,Miscellaneous Expenses,40200,Miscellaneous Expenses,5034,materials,14/10/2016,116151,"1,250.00",Revenue,Adlington Dry Stone Walling,63372
Chorley Borough Council,http://statistics.data.gov.uk/id/local-authority/30UE,Unapportionable Central OHeads,1009,Business Development & Growth,Planned Maintenance,20006,Repairs Maintenance & Alts,5005,Blanket order for PPM works for 2015/6.,07/10/2016,115741,"1,463.62",Revenue,ADT Fire & Security,16645
Chorley Borough Council,http://statistics.data.gov.uk/id/local-authority/30UE,Unapportionable Central OHeads,1009,Business Development & Growth,Planned Maintenance,20006,Repairs Maintenance & Alts,5005,2nd Blanket order for PPM works for 2016.,07/10/2016,115742,340.00,Revenue,ADT Fire & Security,16645
Chorley Borough Council,http://statistics.data.gov.uk/id/local-authority/30UE,Unapportionable Central OHeads,1009,Business Development & Growth,Planned Maintenance,20006,Repairs Maintenance & Alts,5005,2nd Blanket order for PPM works for 2016.,07/10/2016,115743,"1,025.32",Revenue,ADT Fire & Security,16645
Chorley Borough Council,http://statistics.data.gov.uk/id/local-authority/30UE,Unapportionable Central OHeads,1009,Business Development & Growth,General Repairs - Reactive,20004,Repairs Maintenance & Alts,5005,Blanket order for REACTIVE works for 2015/6.,26/10/2016,115983,313.16,Revenue,ADT Fire & Security,16645
Chorley Borough Council,http://statistics.data.gov.uk/id/local-authority/30UE,Unapportionable Central OHeads,1009,Business Development & Growth,General Repairs - Reactive,20004,Repairs Maintenance & Alts,5005,Blanket order for REACTIVE works for 2015/6.,26/10/2016,115984,454.00,Revenue,ADT Fire & Security,16645
Chorley Borough Council,http://statistics.data.gov.uk/id/local-authority/30UE,Unapportionable Central OHeads,1009,Business Development & Growth,Planned Maintenance,20006,Repairs Maintenance & Alts,5005,2nd Blanket order for PPM works for 2016.,28/10/2016,116295,445.05,Revenue,ADT Fire & Security,16645
Chorley Borough Council,http://statistics.data.gov.uk/id/local-authority/30UE,Unapportionable Central OHeads,1009,Business Development & Growth,Planned Maintenance,20006,Repairs Maintenance & Alts,5005,2nd Blanket order for PPM works for 2016.,28/10/2016,116493,496.08,Revenue,ADT Fire & Security,16645
Chorley Borough Council,http://statistics.data.gov.uk/id/local-authority/30UE,Business Support,1095,Business Development & Growth,Professional Fees,40063,Services,5027,upgrade of the exisiting market Walk shop precint elevations,28/10/2016,116446,"3,995.00",Revenue,AEW Architects & Designers Ltd,66520
Chorley Borough Council,http://statistics.data.gov.uk/id/local-authority/30UE,Central Support Services,1009,Customer & Digital,Computer Software-Purchase,40100,Communication and Computing,5028,2nd payment,25/10/2016,115915,"3,876.91",Revenue,Agilepoint EMEA bvba,75434
Chorley Borough Council,http://statistics.data.gov.uk/id/local-authority/30UE,Unapportionable Central OHeads,1009,Business Development & Growth,General Repairs - Reactive,20004,Repairs Maintenance & Alts,5005,Blanket order for reactive works.,28/10/2016,116546,717.50,Revenue,AI Designs Ltd,72578
Chorley Borough Council,http://statistics.data.gov.uk/id/local-authority/30UE,Unapportionable Central OHeads,1009,Business Development & Growth,General Repairs - Reactive,20004,Repairs Maintenance & Alts,5005,Blanket order for reactive works.,28/10/2016,116548,945.00,Revenue,AI Designs Ltd,72578
Chorley Borough Council,http://statistics.data.gov.uk/id/local-authority/30UE,Unapportionable Central OHeads,1009,Business Development & Growth,General Repairs - Reactive,20004,Repairs Maintenance & Alts,5005,Blanket order for reactive works.,28/10/2016,116549,420.00,Revenue,AI Designs Ltd,72578
Chorley Borough Council,http://statistics.data.gov.uk/id/local-authority/30UE,Unapportionable Central OHeads,1009,Business Development & Growth,General Repairs - Reactive,20004,Repairs Maintenance & Alts,5005,Blanket order for reactive works.,28/10/2016,116550,542.00,Revenue,AI Designs Ltd,72578
Chorley Borough Council,http://statistics.data.gov.uk/id/local-authority/30UE,Unapportionable Central OHeads,1009,Customer & Digital,Bank Charges,40151,Miscellaneous Expenses,5034,monthly charges,05/10/2016,115986,"1,790.15",Revenue,Allpay Net Ltd,17242
Chorley Borough Council,http://statistics.data.gov.uk/id/local-authority/30UE,Unapportionable Central OHeads,1009,Policy & Governance,Car Leasing Payment,14100,Direct Employee Expenses,5001,"Renault Kadjar 1.2 TCE Signature Nav 5dr, Body Colour - Titanium, Upholstery SIgnature dark carbon synthetic leather and cloth",05/10/2016,115744,"2,202.03",Revenue,Alphabet (Uk) Fleet Management Ltd,16651
Chorley Borough Council,http://statistics.data.gov.uk/id/local-authority/30UE,Unapportionable Central OHeads,1009,Policy & Governance,Car Leasing Payment,14100,Direct Employee Expenses,5001,Car Lease,05/10/2016,115744,194.52,Revenue,Alphabet (Uk) Fleet Management Ltd,16651
Chorley Borough Council,http://statistics.data.gov.uk/id/local-authority/30UE,Control Accounts,Control,Policy & Governance,Manual Control Account,1,Balance Sheet,Balance,Car Lease,05/10/2016,115744,-194.52,Revenue,Alphabet (Uk) Fleet Management Ltd,16651
Chorley Borough Council,http://statistics.data.gov.uk/id/local-authority/30UE,Unapportionable Central OHeads,1009,Policy & Governance,Car Leasing Payment,14100,Direct Employee Expenses,5001,NAME REDACTED,05/10/2016,116007,"2,388.96",Revenue,Alphabet (Uk) Fleet Management Ltd,16651
Chorley Borough Council,http://statistics.data.gov.uk/id/local-authority/30UE,Unapportionable Central OHeads,1009,Policy & Governance,Car Leasing Payment,14100,Direct Employee Expenses,5001,Car Lease,05/10/2016,116007,195.62,Revenue,Alphabet (Uk) Fleet Management Ltd,16651
Chorley Borough Council,http://statistics.data.gov.uk/id/local-authority/30UE,Control Accounts,Control,Policy & Governance,Manual Control Account,1,Balance Sheet,Balance,Balance Sheet,05/10/2016,116007,-195.62,Revenue,Alphabet (Uk) Fleet Management Ltd,16651
Chorley Borough Council,http://statistics.data.gov.uk/id/local-authority/30UE,Central Support Services,1009,Policy & Governance,Car Leasing Payment,14100,Direct Employee Expenses,5001,NAME REDACTED,05/10/2016,116008,"2,598.75",Revenue,Alphabet (Uk) Fleet Management Ltd,16651
Chorley Borough Council,http://statistics.data.gov.uk/id/local-authority/30UE,Central Support Services,1009,Policy & Governance,Car Leasing Payment,14100,Direct Employee Expenses,5001,Car Lease,05/10/2016,116008,224.07,Revenue,Alphabet (Uk) Fleet Management Ltd,16651
Chorley Borough Council,http://statistics.data.gov.uk/id/local-authority/30UE,Control Accounts,Control,Policy & Governance,Manual Control Account,1,Balance Sheet,Balance,Balance Sheet,05/10/2016,116008,-224.07,Revenue,Alphabet (Uk) Fleet Management Ltd,16651
Chorley Borough Council,http://statistics.data.gov.uk/id/local-authority/30UE,Central Support Services,1009,Policy & Governance,Car Leasing Payment,14100,Direct Employee Expenses,5001,NAME REDACTED,21/10/2016,116138,"2,722.62",Revenue,Alphabet (Uk) Fleet Management Ltd,16651
Chorley Borough Council,http://statistics.data.gov.uk/id/local-authority/30UE,Central Support Services,1009,Policy & Governance,Car Leasing Payment,14100,Direct Employee Expenses,5001,Car Lease,21/10/2016,116138,229.30,Revenue,Alphabet (Uk) Fleet Management Ltd,16651
Chorley Borough Council,http://statistics.data.gov.uk/id/local-authority/30UE,Control Accounts,Control,Policy & Governance,Manual Control Account,1,Balance Sheet,Balance,Balance Sheet,21/10/2016,116138,-229.30,Revenue,Alphabet (Uk) Fleet Management Ltd,16651
Chorley Borough Council,http://statistics.data.gov.uk/id/local-authority/30UE,Central Support Services,1009,Early Intervention,Children's Activities,40188,Miscellaneous Expenses,5034,Delivery of outdoor adventure activities for reach up and go programme on Friday 29th July booked by NAME REDACTED,26/10/2016,116477,500.00,Revenue,Anderton Centre - LOAI,56108
Chorley Borough Council,http://statistics.data.gov.uk/id/local-authority/30UE,Business Support,1095,Business Development & Growth,Grants To Other Organisations,40127,Grants and Subscriptions,5031,subsidy 4,26/10/2016,116423,623.00,Revenue,NAME REDACTED,76176
Chorley Borough Council,http://statistics.data.gov.uk/id/local-authority/30UE,Homelessness,1075,Early Intervention,Rental Bond Scheme,40241,Miscellaneous Expenses,5034,bond claim fee,26/10/2016,116448,365.00,Revenue,NAME REDACTED,73017
Chorley Borough Council,http://statistics.data.gov.uk/id/local-authority/30UE,Homelessness,1075,Early Intervention,Rental Bond Scheme,40241,Miscellaneous Expenses,5034,bond claim fee,26/10/2016,116449,390.00,Revenue,NAME REDACTED,59484
Chorley Borough Council,http://statistics.data.gov.uk/id/local-authority/30UE,Central Support Services,1009,Customer & Digital,Computer Equipment-Maintenance,40105,Communication and Computing,5028,Managed infrastructure contract - October 2016,19/10/2016,116206,"2,000.00",Revenue,ANS Group,22502
Chorley Borough Council,http://statistics.data.gov.uk/id/local-authority/30UE,Central Support Services,1009,Customer & Digital,Miscellaneous Expenses,40200,Miscellaneous Expenses,5034,Carryout tarmacking and slurry sealing works to footpath from Springs Rd through to Laburnum Rd as per your quote reference ,12/10/2016,115621,"6,345.00",Revenue,AP Broom Landscapes,67257
Chorley Borough Council,http://statistics.data.gov.uk/id/local-authority/30UE,Central Support Services,1009,Customer & Digital,Miscellaneous Expenses,40200,Miscellaneous Expenses,5034,Carryout extra slurrying works at Springs Rd footpath to Chorley North industrial estate as agreed with NAME REDACTED,12/10/2016,115750,"1,660.00",Revenue,AP Broom Landscapes,67257
Chorley Borough Council,http://statistics.data.gov.uk/id/local-authority/30UE,Service Management & Support,1009,Customer & Digital,Supplies-Grounds Maintenance,40025,"Equipment, Furniture & Materia",5023,Supply 50/50 top dressing soil sand mix as requested by fine turf team delivered to Bengal St depot,12/10/2016,115930,484.00,Revenue,AP Broom Landscapes,67257
Chorley Borough Council,http://statistics.data.gov.uk/id/local-authority/30UE,Unapportionable Central OHeads,1009,Customer & Digital,Exhibitions & Special Events,40158,Miscellaneous Expenses,5034,Supply 122m2 of verde grass for Chorley flower show to include fixing pegs as requested by NAME REDACTED,12/10/2016,115931,"1,159.00",Revenue,AP Broom Landscapes,67257
Chorley Borough Council,http://statistics.data.gov.uk/id/local-authority/30UE,Democratic Represent and  Mgnt,1007,Customer & Digital,Playground Equipment,40008,"Equipment, Furniture & Materia",5023,90 cube of play bark,12/10/2016,115935,"2,565.00",Revenue,AP Broom Landscapes,67257
Chorley Borough Council,http://statistics.data.gov.uk/id/local-authority/30UE,Central Support Services,1009,Customer & Digital,Miscellaneous Expenses,40200,Miscellaneous Expenses,5034,Supply and install solar lighting to footpath at Wheelton Village Hall as per your quotation,12/10/2016,115936,"3,677.00",Revenue,AP Broom Landscapes,67257
Chorley Borough Council,http://statistics.data.gov.uk/id/local-authority/30UE,Service Management & Support,1009,Customer & Digital,External Contractor,40198,Miscellaneous Expenses,5034,Carryout tree works as requested by NAME REDACTED as per Quote No Q805715,12/10/2016,116148,"1,350.00",Revenue,AP Broom Landscapes,67257
Chorley Borough Council,http://statistics.data.gov.uk/id/local-authority/30UE,Service Management & Support,1009,Customer & Digital,External Contractor,40198,Miscellaneous Expenses,5034,Excavate and remove old stone trough from Duxbury woods as requested and deliver to Bengal St depot,12/10/2016,116152,482.00,Revenue,AP Broom Landscapes,67257
Chorley Borough Council,http://statistics.data.gov.uk/id/local-authority/30UE,Service Management & Support,1009,Customer & Digital,External Contractor,40198,Miscellaneous Expenses,5034,painting works at Tatton recreation ground as requested by NAME REDACTED for Green Flag inspection as per Quote number ,12/10/2016,116153,"2,095.00",Revenue,AP Broom Landscapes,67257
Chorley Borough Council,http://statistics.data.gov.uk/id/local-authority/30UE,Service Management & Support,1009,Customer & Digital,External Contractor,40198,Miscellaneous Expenses,5034,Carryout strimming of banking`s as per your quote Parish Banking Central Drive banking`s Astley Park Lake banking To be,14/10/2016,116154,"1,870.00",Revenue,AP Broom Landscapes,67257
Chorley Borough Council,http://statistics.data.gov.uk/id/local-authority/30UE,Democratic Represent and  Mgnt,1007,Customer & Digital,Playground Equipment,40008,"Equipment, Furniture & Materia",5023,90 cube of play bark,14/10/2016,116155,"2,565.00",Revenue,AP Broom Landscapes,67257
Chorley Borough Council,http://statistics.data.gov.uk/id/local-authority/30UE,Service Management & Support,1009,Customer & Digital,External Contractor,40198,Miscellaneous Expenses,5034,Carryout works reinstate ground after removal of Myerscough garden for flower show as per your quoe number Q805714,12/10/2016,116156,570.00,Revenue,AP Broom Landscapes,67257
Chorley Borough Council,http://statistics.data.gov.uk/id/local-authority/30UE,Service Management & Support,1009,Customer & Digital,External Contractor,40198,Miscellaneous Expenses,5034,Carryout tree works and clearing out river as per your Quote number Q805837,12/10/2016,116157,"1,350.00",Revenue,AP Broom Landscapes,67257
Chorley Borough Council,http://statistics.data.gov.uk/id/local-authority/30UE,Service Management & Support,1009,Customer & Digital,External Contractor,40198,Miscellaneous Expenses,5034,Manufacture and fit new bottom to multi unit bridge at Tatton rec as requested as on invoice number 017044,21/10/2016,116380,320.00,Revenue,Ark Welding Ltd,18154
Chorley Borough Council,http://statistics.data.gov.uk/id/local-authority/30UE,Unapportionable Central OHeads,1009,Policy & Governance,Car Leasing Payment,14100,Direct Employee Expenses,5001,NAME REDACTED,05/10/2016,116053,348.00,Revenue,Arnold Clark Finance Ltd,20685
Chorley Borough Council,http://statistics.data.gov.uk/id/local-authority/30UE,Unapportionable Central OHeads,1009,Policy & Governance,Car Leasing Payment,14100,Direct Employee Expenses,5001,Car Lease,05/10/2016,116053,30.24,Revenue,Arnold Clark Finance Ltd,20685
Chorley Borough Council,http://statistics.data.gov.uk/id/local-authority/30UE,Control Accounts,Control,Policy & Governance,Manual Control Account,1,Balance Sheet,Balance,Balance Sheet,05/10/2016,116053,-30.24,Revenue,Arnold Clark Finance Ltd,20685
Chorley Borough Council,http://statistics.data.gov.uk/id/local-authority/30UE,Unapportionable Central OHeads,1009,Policy & Governance,Car Leasing Payment,14100,Direct Employee Expenses,5001,NAME REDACTED,05/10/2016,116053,358.16,Revenue,Arnold Clark Finance Ltd,20685
Chorley Borough Council,http://statistics.data.gov.uk/id/local-authority/30UE,Unapportionable Central OHeads,1009,Policy & Governance,Car Leasing Payment,14100,Direct Employee Expenses,5001,Car Lease,05/10/2016,116053,32.61,Revenue,Arnold Clark Finance Ltd,20685
Chorley Borough Council,http://statistics.data.gov.uk/id/local-authority/30UE,Control Accounts,Control,Policy & Governance,Manual Control Account,1,Balance Sheet,Balance,Balance Sheet,05/10/2016,116053,-32.61,Revenue,Arnold Clark Finance Ltd,20685
Chorley Borough Council,http://statistics.data.gov.uk/id/local-authority/30UE,Development Control,1091,Policy & Governance,Car Leasing Payment,14100,Direct Employee Expenses,5001,NAME REDACTED,05/10/2016,116053,241.00,Revenue,Arnold Clark Finance Ltd,20685
Chorley Borough Council,http://statistics.data.gov.uk/id/local-authority/30UE,Development Control,1091,Policy & Governance,Car Leasing Payment,14100,Direct Employee Expenses,5001,Car Lease,05/10/2016,116053,20.10,Revenue,Arnold Clark Finance Ltd,20685
Chorley Borough Council,http://statistics.data.gov.uk/id/local-authority/30UE,Control Accounts,Control,Policy & Governance,Manual Control Account,1,Balance Sheet,Balance,Balance Sheet,05/10/2016,116053,-20.10,Revenue,Arnold Clark Finance Ltd,20685
Chorley Borough Council,http://statistics.data.gov.uk/id/local-authority/30UE,Democratic Represent and  Mgnt,1007,Policy & Governance,Lifelong Learning Activities,40194,Miscellaneous Expenses,5034,Provision of workshop and supply of materials at Astley Hall 18/09/2016,12/10/2016,116158,400.00,Revenue,Art Den,76264
Chorley Borough Council,http://statistics.data.gov.uk/id/local-authority/30UE,Corporate Management,1008,Customer & Digital,Other Contributions,40145,Grants and Subscriptions,5031,ADDRESS REDACTED,26/10/2016,116515,"5,000.00",Revenue,ADDRESS REDACTED,74834
Chorley Borough Council,http://statistics.data.gov.uk/id/local-authority/30UE,Unapportionable Central OHeads,1009,Customer & Digital,Training Course Fees,17010,Indirect Employee Expenses,5002,Business Rates Training Tuesday 18th October,26/10/2016,116074,725.00,Revenue,arvato Ltd,22388
Chorley Borough Council,http://statistics.data.gov.uk/id/local-authority/30UE,Unapportionable Central OHeads,1009,Customer & Digital,Legal Fees,40171,Miscellaneous Expenses,5034,legal fees,25/10/2016,115988,"2,000.00",Revenue,AW Law Limited,76296
Chorley Borough Council,http://statistics.data.gov.uk/id/local-authority/30UE,Corporate Management,1008,Policy & Governance,Bank Charges,40151,Miscellaneous Expenses,5034,Miscellaneous Expenses,25/10/2016,116428,597.14,Revenue,Barclaycard Merchant Services,61601
Chorley Borough Council,http://statistics.data.gov.uk/id/local-authority/30UE,Corporate Management,1008,Policy & Governance,Bank Charges,40151,Miscellaneous Expenses,5034,Miscellaneous Expenses,25/10/2016,116429,481.79,Revenue,Barclaycard Merchant Services,61601
Chorley Borough Council,http://statistics.data.gov.uk/id/local-authority/30UE,Service Management & Support,1009,Customer & Digital,Grounds Maintenance Contractor,20043,Grounds Maintenance Costs,5013,Painting works carried out at St Georges Church (railings),05/10/2016,115905,920.00,Revenue,NAME REDACTED,19585
Chorley Borough Council,http://statistics.data.gov.uk/id/local-authority/30UE,Unapportionable Central OHeads,1009,Policy & Governance,Exhibitions & Special Events,40158,Miscellaneous Expenses,5034,Event infrastructure and promotion of Picnic in the Park on Rock FM,05/10/2016,115806,"9,462.00",Revenue,Bauer Active Ltd,50574
Chorley Borough Council,http://statistics.data.gov.uk/id/local-authority/30UE,Unapportionable Central OHeads,1009,Customer & Digital,Consultants` Fees,40077,Services,5027,"Support as agreed with Customer, Transactional and ICT services",26/10/2016,116115,"1,905.00",Revenue,REDACTED PERSONAL DATA,22238
Chorley Borough Council,http://statistics.data.gov.uk/id/local-authority/30UE,Democratic Represent and  Mgnt,1007,Business Development & Growth,Supplies-Grounds Maintenance,40025,"Equipment, Furniture & Materia",5023,refund,19/10/2016,116236,550.00,Revenue,Bedrock Landscapes,76308
Chorley Borough Council,http://statistics.data.gov.uk/id/local-authority/30UE,Business Support,1095,Business Development & Growth,Electricity,20013,Energy Costs,5006,royal oak,07/10/2016,115989,539.95,Revenue,BES Commercial Electricity Ltd,76115
Chorley Borough Council,http://statistics.data.gov.uk/id/local-authority/30UE,Business Support,1095,Business Development & Growth,Electricity,20013,Energy Costs,5006,Royal Oak,28/10/2016,116497,364.51,Revenue,BES Commercial Electricity Ltd,76115
Chorley Borough Council,http://statistics.data.gov.uk/id/local-authority/30UE,Elections,1012,Policy & Governance,Rent/Hire Of Premises,20017,Premises Rents,5007,room hire 5 may 2016,21/10/2016,116447,400.00,Revenue,Bretherton Congregational Church Hall,53724
Chorley Borough Council,http://statistics.data.gov.uk/id/local-authority/30UE,Unapportionable Central OHeads,1009,Customer & Digital,Publicity - Advertising,40157,Miscellaneous Expenses,5034,BT advert for Customer Services,19/10/2016,116292,"1,542.42",Revenue,British Telecommunications,18431
Chorley Borough Council,http://statistics.data.gov.uk/id/local-authority/30UE,Central Support Services,1009,Customer & Digital,Telephones - Rentals,40083,Communication and Computing,5028,recurring,28/10/2016,116608,"2,880.61",Revenue,British Telecommunications Plc,17131
Chorley Borough Council,http://statistics.data.gov.uk/id/local-authority/30UE,Central Support Services,1009,Customer & Digital,Telephones - Calls,40084,Communication and Computing,5028,usage,28/10/2016,116608,199.24,Revenue,British Telecommunications Plc,17131
Chorley Borough Council,http://statistics.data.gov.uk/id/local-authority/30UE,Central Support Services,1009,Customer & Digital,Telephones - Other,40085,Communication and Computing,5028,one off,28/10/2016,116608,788.00,Revenue,British Telecommunications Plc,17131
Chorley Borough Council,http://statistics.data.gov.uk/id/local-authority/30UE,Capital,Capital,Business Development & Growth,Main Contractor,3007,Capital Expenditure,Capital,3nr Brown Recycled Plastic Langham 800mm wide notice boards and delivery.,05/10/2016,115869,"3,086.46",Capital,Broxap Ltd,16718
Chorley Borough Council,http://statistics.data.gov.uk/id/local-authority/30UE,Democratic Represent and  Mgnt,1007,Business Development & Growth,Maintenance/Nature Reserves,20045,Grounds Maintenance Costs,5013,3nr Brown Recycled Plastic Langham 800mm wide notice boards and delivery.,05/10/2016,115869,573.54,Revenue,Broxap Ltd,16718
Chorley Borough Council,http://statistics.data.gov.uk/id/local-authority/30UE,Service Management & Support,1009,Customer & Digital,External Contractor,40198,Miscellaneous Expenses,5034,Carryout emptying of interceptor tank and clearing of gullies on a monthly basis at Bengal St Depot as requested,21/10/2016,116143,325.00,Revenue,C J Lyon,16579
Chorley Borough Council,http://statistics.data.gov.uk/id/local-authority/30UE,Service Management & Support,1009,Customer & Digital,External Contractor,40198,Miscellaneous Expenses,5034,Carryout jetting works and clearing of trash screen for Chorley Council as instructed at various sites,21/10/2016,116361,845.00,Revenue,C J Lyon,16579
Chorley Borough Council,http://statistics.data.gov.uk/id/local-authority/30UE,Service Management & Support,1009,Customer & Digital,Insurance Claims Settled,60178,Customer & Client Receipts,5064,rampins,12/10/2016,116093,"3,005.79",Revenue,C P Davidson & Sons Ltd,21093
Chorley Borough Council,http://statistics.data.gov.uk/id/local-authority/30UE,Service Management & Support,1009,Customer & Digital,Vehicle Maintenance,30045,Direct Transport Costs,5016,Carryout pre MOT inspection repairs and service on DX55CVG and take for annual test as required.,19/10/2016,116287,"3,597.34",Revenue,C P Davidson & Sons Ltd,21093
Chorley Borough Council,http://statistics.data.gov.uk/id/local-authority/30UE,Service Management & Support,1009,Customer & Digital,Vehicle Maintenance,30045,Direct Transport Costs,5016,Carryout pre MOT inspection and service on DK55EEF and take for annual test as requested,19/10/2016,116288,"1,734.32",Revenue,C P Davidson & Sons Ltd,21093
Chorley Borough Council,http://statistics.data.gov.uk/id/local-authority/30UE,Service Management & Support,1009,Customer & Digital,Vehicle Maintenance,30045,Direct Transport Costs,5016,Carryout FTA repairs to PN02 HRL as required from inspection sheet.,28/10/2016,116537,"1,093.82",Revenue,C P Davidson & Sons Ltd,21093
Chorley Borough Council,http://statistics.data.gov.uk/id/local-authority/30UE,Unapportionable Central OHeads,1009,Customer & Digital,Emergency Call Out System,40096,Communication and Computing,5028,out of hours,14/10/2016,116067,450.12,Revenue,CallCare Ltd,20257
Chorley Borough Council,http://statistics.data.gov.uk/id/local-authority/30UE,Unapportionable Central OHeads,1009,Policy & Governance,Refuse Collection,20037,Cleaning and Domestic Supplies,5012,All services provided by Cannon Hygiene for all council sites for the period October to December 2016,19/10/2016,116275,"1,316.85",Revenue,Cannon Hygiene Limited,18158
Chorley Borough Council,http://statistics.data.gov.uk/id/local-authority/30UE,Unapportionable Central OHeads,1009,Customer & Digital,Photocopier Charges,40047,"Printing, Stationery & General",5026,charges,19/10/2016,116137,"2,487.33",Revenue,Canon (UK) Ltd,17492
Chorley Borough Council,http://statistics.data.gov.uk/id/local-authority/30UE,Corporate Management,1008,Policy & Governance,Treasury Management Service,40065,Services,5027,Treasury Services for the financial year 2016-17,21/10/2016,115220,"7,275.00",Revenue,Capita Treasury Solutions Ltd,16428
Chorley Borough Council,http://statistics.data.gov.uk/id/local-authority/30UE,Central Support Services,1009,Early Intervention,Professional Fees,40063,Services,5027,judges transcript,12/10/2016,116079,254.15,Revenue,Cater Walsh Reporting Ltd,76158
Chorley Borough Council,http://statistics.data.gov.uk/id/local-authority/30UE,Parking Services,1066,Business Development & Growth,External Contractors,50008,Private Contractors,5042,Processing001 - Notice Processing Services April 16 - September 16 @ 2.89 per pcn,28/10/2016,116576,592.45,Revenue,Chipside Ltd,22063
Chorley Borough Council,http://statistics.data.gov.uk/id/local-authority/30UE,Corporate Management,1008,Early Intervention,Taxi Testing & Vehicle Safety Report,40234,Services,5027,taxi test,12/10/2016,116092,136.80,Revenue,Chorley Autocare Ltd,17110
Chorley Borough Council,http://statistics.data.gov.uk/id/local-authority/30UE,Corporate Management,1008,Early Intervention,Taxi Testing & Vehicle Safety Report,40234,Services,5027,mot,12/10/2016,116092,877.60,Revenue,Chorley Autocare Ltd,17110
Chorley Borough Council,http://statistics.data.gov.uk/id/local-authority/30UE,Democratic Represent and  Mgnt,1007,Chief Executive,Tools & Equipment - Purchase,40003,"Equipment, Furniture & Materia",5023,screws,21/10/2016,116451,3.33,Revenue,Chorley BC Petty Cash,16301
Chorley Borough Council,http://statistics.data.gov.uk/id/local-authority/30UE,Central Support Services,1009,Chief Executive,Community Develop Initiatives,40185,Miscellaneous Expenses,5034,refreshments,21/10/2016,116451,12.09,Revenue,Chorley BC Petty Cash,16301
Chorley Borough Council,http://statistics.data.gov.uk/id/local-authority/30UE,Democratic Represent and  Mgnt,1007,Chief Executive,Tools & Equipment - Purchase,40003,"Equipment, Furniture & Materia",5023,temp gauge,21/10/2016,116451,2.49,Revenue,Chorley BC Petty Cash,16301
Chorley Borough Council,http://statistics.data.gov.uk/id/local-authority/30UE,Democratic Represent and  Mgnt,1007,Chief Executive,Use Of Transport - Mayoral Car,30015,Transport Recharges,5017,mayors car wash,21/10/2016,116451,5.00,Revenue,Chorley BC Petty Cash,16301
Chorley Borough Council,http://statistics.data.gov.uk/id/local-authority/30UE,Central Support Services,1009,Chief Executive,Community Develop Initiatives,40185,Miscellaneous Expenses,5034,refreshments,21/10/2016,116451,11.02,Revenue,Chorley BC Petty Cash,16301
Chorley Borough Council,http://statistics.data.gov.uk/id/local-authority/30UE,Central Support Services,1009,Chief Executive,Community Develop Initiatives,40185,Miscellaneous Expenses,5034,junior citizens,21/10/2016,116451,15.00,Revenue,Chorley BC Petty Cash,16301
Chorley Borough Council,http://statistics.data.gov.uk/id/local-authority/30UE,Democratic Represent and  Mgnt,1007,Chief Executive,Use Of Transport - Mayoral Car,30015,Transport Recharges,5017,coal,21/10/2016,116451,7.00,Revenue,Chorley BC Petty Cash,16301
Chorley Borough Council,http://statistics.data.gov.uk/id/local-authority/30UE,Democratic Represent and  Mgnt,1007,Chief Executive,Stationery,40050,"Printing, Stationery & General",5026,keys cut,21/10/2016,116451,7.50,Revenue,Chorley BC Petty Cash,16301
Chorley Borough Council,http://statistics.data.gov.uk/id/local-authority/30UE,Central Support Services,1009,Chief Executive,Community Develop Initiatives,40185,Miscellaneous Expenses,5034,refreshments,21/10/2016,116451,51.82,Revenue,Chorley BC Petty Cash,16301
Chorley Borough Council,http://statistics.data.gov.uk/id/local-authority/30UE,Unapportionable Central OHeads,1009,Chief Executive,Refreshments,40036,Catering,5024,milk,21/10/2016,116451,20.63,Revenue,Chorley BC Petty Cash,16301
Chorley Borough Council,http://statistics.data.gov.uk/id/local-authority/30UE,Democratic Represent and  Mgnt,1007,Chief Executive,Miscellaneous Expenses,40200,Miscellaneous Expenses,5034,refreshments,21/10/2016,116451,7.00,Revenue,Chorley BC Petty Cash,16301
Chorley Borough Council,http://statistics.data.gov.uk/id/local-authority/30UE,Democratic Represent and  Mgnt,1007,Chief Executive,Miscellaneous Expenses,40200,Miscellaneous Expenses,5034,consumables,21/10/2016,116451,2.65,Revenue,Chorley BC Petty Cash,16301
Chorley Borough Council,http://statistics.data.gov.uk/id/local-authority/30UE,Recreation & Sport,1037,Chief Executive,Fixtures & Fittings - Purchase,20027,Fixtures and Fittings,5010,labels,21/10/2016,116451,1.67,Revenue,Chorley BC Petty Cash,16301
Chorley Borough Council,http://statistics.data.gov.uk/id/local-authority/30UE,Unapportionable Central OHeads,1009,Chief Executive,Miscellaneous Expenses,40200,Miscellaneous Expenses,5034,fan,21/10/2016,116451,8.33,Revenue,Chorley BC Petty Cash,16301
Chorley Borough Council,http://statistics.data.gov.uk/id/local-authority/30UE,Democratic Represent and  Mgnt,1007,Chief Executive,Fixtures & Fittings - Purchase,20027,Fixtures and Fittings,5010,key,21/10/2016,116451,3.54,Revenue,Chorley BC Petty Cash,16301
Chorley Borough Council,http://statistics.data.gov.uk/id/local-authority/30UE,Democratic Represent and  Mgnt,1007,Chief Executive,Use Of Transport - Mayoral Car,30015,Transport Recharges,5017,car wash,21/10/2016,116451,5.00,Revenue,Chorley BC Petty Cash,16301
Chorley Borough Council,http://statistics.data.gov.uk/id/local-authority/30UE,Unapportionable Central OHeads,1009,Chief Executive,Refreshments,40036,Catering,5024,milk,21/10/2016,116451,2.00,Revenue,Chorley BC Petty Cash,16301
Chorley Borough Council,http://statistics.data.gov.uk/id/local-authority/30UE,Recreation & Sport,1037,Chief Executive,Cleaning Materials,40019,"Equipment, Furniture & Materia",5023,handwash,21/10/2016,116451,3.00,Revenue,Chorley BC Petty Cash,16301
Chorley Borough Council,http://statistics.data.gov.uk/id/local-authority/30UE,Central Support Services,1009,Chief Executive,Exhibitions & Special Events,40158,Miscellaneous Expenses,5034,refreshments,21/10/2016,116451,18.00,Revenue,Chorley BC Petty Cash,16301
Chorley Borough Council,http://statistics.data.gov.uk/id/local-authority/30UE,Recreation & Sport,1037,Chief Executive,Fixtures & Fittings - Purchase,20027,Fixtures and Fittings,5010,padlock,21/10/2016,116451,6.66,Revenue,Chorley BC Petty Cash,16301
Chorley Borough Council,http://statistics.data.gov.uk/id/local-authority/30UE,Democratic Represent and  Mgnt,1007,Chief Executive,Exhibitions,40176,Miscellaneous Expenses,5034,stationary,21/10/2016,116451,15.28,Revenue,Chorley BC Petty Cash,16301
Chorley Borough Council,http://statistics.data.gov.uk/id/local-authority/30UE,Democratic Represent and  Mgnt,1007,Chief Executive,Exhibitions,40176,Miscellaneous Expenses,5034,plates and screws,21/10/2016,116451,13.48,Revenue,Chorley BC Petty Cash,16301
Chorley Borough Council,http://statistics.data.gov.uk/id/local-authority/30UE,Democratic Represent and  Mgnt,1007,Chief Executive,Exhibitions,40176,Miscellaneous Expenses,5034,plates and screws,21/10/2016,116451,13.25,Revenue,Chorley BC Petty Cash,16301
Chorley Borough Council,http://statistics.data.gov.uk/id/local-authority/30UE,Democratic Represent and  Mgnt,1007,Chief Executive,Use Of Transport - Mayoral Car,30015,Transport Recharges,5017,car wash,21/10/2016,116451,5.00,Revenue,Chorley BC Petty Cash,16301
Chorley Borough Council,http://statistics.data.gov.uk/id/local-authority/30UE,Unapportionable Central OHeads,1009,Chief Executive,Stationery,40050,"Printing, Stationery & General",5026,dividers,21/10/2016,116451,6.65,Revenue,Chorley BC Petty Cash,16301
Chorley Borough Council,http://statistics.data.gov.uk/id/local-authority/30UE,Democratic Represent and  Mgnt,1007,Chief Executive,Stationery,40050,"Printing, Stationery & General",5026,diary,21/10/2016,116451,5.83,Revenue,Chorley BC Petty Cash,16301
Chorley Borough Council,http://statistics.data.gov.uk/id/local-authority/30UE,Unapportionable Central OHeads,1009,Chief Executive,Postages,40082,Communication and Computing,5028,mail surcharges,21/10/2016,116451,2.00,Revenue,Chorley BC Petty Cash,16301
Chorley Borough Council,http://statistics.data.gov.uk/id/local-authority/30UE,Democratic Represent and  Mgnt,1007,Chief Executive,Use Of Transport - Mayoral Car,30015,Transport Recharges,5017,car wash,21/10/2016,116451,5.00,Revenue,Chorley BC Petty Cash,16301
Chorley Borough Council,http://statistics.data.gov.uk/id/local-authority/30UE,Unapportionable Central OHeads,1009,Chief Executive,Postages,40082,Communication and Computing,5028,postage,21/10/2016,116451,21.90,Revenue,Chorley BC Petty Cash,16301
Chorley Borough Council,http://statistics.data.gov.uk/id/local-authority/30UE,Democratic Represent and  Mgnt,1007,Chief Executive,Use Of Transport - Mayoral Car,30015,Transport Recharges,5017,car wash,21/10/2016,116451,5.00,Revenue,Chorley BC Petty Cash,16301
Chorley Borough Council,http://statistics.data.gov.uk/id/local-authority/30UE,Democratic Represent and  Mgnt,1007,Chief Executive,Mayoral Hospitality,40123,Expenses,5030,cakes,21/10/2016,116451,8.07,Revenue,Chorley BC Petty Cash,16301
Chorley Borough Council,http://statistics.data.gov.uk/id/local-authority/30UE,Democratic Represent and  Mgnt,1007,Chief Executive,Use Of Transport - Mayoral Car,30015,Transport Recharges,5017,car wash,21/10/2016,116451,5.00,Revenue,Chorley BC Petty Cash,16301
Chorley Borough Council,http://statistics.data.gov.uk/id/local-authority/30UE,Unapportionable Central OHeads,1009,Chief Executive,Tools & Equipment - Purchase,40003,"Equipment, Furniture & Materia",5023,batteries,21/10/2016,116451,3.99,Revenue,Chorley BC Petty Cash,16301
Chorley Borough Council,http://statistics.data.gov.uk/id/local-authority/30UE,Democratic Represent and  Mgnt,1007,Chief Executive,Mayoral Hospitality,40123,Expenses,5030,refreshemrns,21/10/2016,116451,46.61,Revenue,Chorley BC Petty Cash,16301
Chorley Borough Council,http://statistics.data.gov.uk/id/local-authority/30UE,Unapportionable Central OHeads,1009,Chief Executive,Tools & Equipment - Purchase,40003,"Equipment, Furniture & Materia",5023,tools,21/10/2016,116451,7.98,Revenue,Chorley BC Petty Cash,16301
Chorley Borough Council,http://statistics.data.gov.uk/id/local-authority/30UE,Democratic Represent and  Mgnt,1007,Chief Executive,Tools & Equipment - Purchase,40003,"Equipment, Furniture & Materia",5023,keys,21/10/2016,116451,15.40,Revenue,Chorley BC Petty Cash,16301
Chorley Borough Council,http://statistics.data.gov.uk/id/local-authority/30UE,Corporate Management,1008,Chief Executive,Civic Amenity Collection,60126,Customer & Client Receipts,5064,waste collection,21/10/2016,116451,10.42,Revenue,Chorley BC Petty Cash,16301
Chorley Borough Council,http://statistics.data.gov.uk/id/local-authority/30UE,Economic Development,1096,Chief Executive,Tools & Equipment - Purchase,40003,"Equipment, Furniture & Materia",5023,batteries,21/10/2016,116451,1.66,Revenue,Chorley BC Petty Cash,16301
Chorley Borough Council,http://statistics.data.gov.uk/id/local-authority/30UE,Business Support,1095,Chief Executive,Miscellaneous Expenses,40200,Miscellaneous Expenses,5034,key,21/10/2016,116451,3.54,Revenue,Chorley BC Petty Cash,16301
Chorley Borough Council,http://statistics.data.gov.uk/id/local-authority/30UE,Democratic Represent and  Mgnt,1007,Policy & Governance,Miscellaneous Expenses,40200,Miscellaneous Expenses,5034,Provision of services for ``Somme to some other lands`` project,05/10/2016,116022,750.00,Revenue,Chorley in the Great War,76295
Chorley Borough Council,http://statistics.data.gov.uk/id/local-authority/30UE,Democratic Represent and  Mgnt,1007,Policy & Governance,Exhibitions & Special Events,40158,Miscellaneous Expenses,5034,Provision of services as part of ``Somme to some other Lands`` project,05/10/2016,116023,"1,000.00",Revenue,Chorley in the Great War,76295
Chorley Borough Council,http://statistics.data.gov.uk/id/local-authority/30UE,Service Management & Support,1009,Customer & Digital,Hire Of Transport,30028,Contrct Hire & Operating Lease,5018,NV200,05/10/2016,115729,"2,838.50",Revenue,Chorley Nissan,57435
Chorley Borough Council,http://statistics.data.gov.uk/id/local-authority/30UE,Service Management & Support,1009,Customer & Digital,Hire Of Transport,30028,Contrct Hire & Operating Lease,5018,Payment to cover cost of hiring 2 x Nissan NV200 vans at price quoted,12/10/2016,115747,"1,379.98",Revenue,Chorley Nissan,57435
Chorley Borough Council,http://statistics.data.gov.uk/id/local-authority/30UE,Central Support Services,1009,Early Intervention,Children's Activities,40188,Miscellaneous Expenses,5034,Delivery of Athletics camp during summer programme,12/10/2016,116159,484.50,Revenue,Chorley School Sport Partnership,56115
Chorley Borough Council,http://statistics.data.gov.uk/id/local-authority/30UE,Community Development,1097,Policy & Governance,Core Funding Grants,40133,Grants and Subscriptions,5031,Delivery of a service to support adults (women) 2nd instalment 2016/17,21/10/2016,116409,"7,497.75",Revenue,Chorley Womens Centre,17036
Chorley Borough Council,http://statistics.data.gov.uk/id/local-authority/30UE,Unapportionable Central OHeads,1009,Business Development & Growth,Planned Maintenance,20006,Repairs Maintenance & Alts,5005,Blanket order for PPM works for 2016.,14/10/2016,116086,"1,504.38",Revenue,Chubb Electronic Sec Sys Ltd,16228
Chorley Borough Council,http://statistics.data.gov.uk/id/local-authority/30UE,Unapportionable Central OHeads,1009,Policy & Governance,IT Software - Annual Licences,40101,Communication and Computing,5028,Annual Digital email Kofax upgrade 1st Nov 16 to 31st Oct 17,12/10/2016,116116,"1,050.79",Revenue,Civica UK Limited,17463
Chorley Borough Council,http://statistics.data.gov.uk/id/local-authority/30UE,Elections,1012,Policy & Governance,Rent/Hire Of Premises,20017,Premises Rents,5007,room hire for LCC by election 21 July 2016,14/10/2016,116245,250.00,Revenue,Clayton-Le-Woods Community Centre,18526
Chorley Borough Council,http://statistics.data.gov.uk/id/local-authority/30UE,Homelessness,1075,Early Intervention,Service Fees,40056,Services,5027,Sub Regional Management Costs 2016 - 2017 (as agreed with NAME REDACTED),26/10/2016,116509,585.43,Revenue,Community Gateway Association Limited,22193
Chorley Borough Council,http://statistics.data.gov.uk/id/local-authority/30UE,Central Support Services,1009,Customer & Digital,Miscellaneous Expenses,40200,Miscellaneous Expenses,5034,Supply and install bus shelters as per your quote No 17060/2016 at Great Greens Lane Clayton Brook,28/10/2016,116536,"3,250.00",Revenue,Commutaports,56228
Chorley Borough Council,http://statistics.data.gov.uk/id/local-authority/30UE,Capital,Capital,Business Development & Growth,Main Contractor,3007,Capital Expenditure,Capital,JE5738 16.  Footpath improvements to path from Cedar Field to A6 and river channel work. To be carried out after completion ,05/10/2016,115924,"1,719.69",Capital,Conservation Contracts North West,20520
Chorley Borough Council,http://statistics.data.gov.uk/id/local-authority/30UE,Unapportionable Central OHeads,1009,Business Development & Growth,Planned Maintenance,20006,Repairs Maintenance & Alts,5005,Fixed wire testing of all sites as per tender quote.,21/10/2016,116180,"1,424.80",Revenue,Corlett Electrical Eng Co Ltd,16271
Chorley Borough Council,http://statistics.data.gov.uk/id/local-authority/30UE,Unapportionable Central OHeads,1009,Business Development & Growth,Planned Maintenance,20006,Repairs Maintenance & Alts,5005,Fixed wire testing of all sites as per tender quote.,28/10/2016,116416,358.34,Revenue,Corlett Electrical Eng Co Ltd,16271
Chorley Borough Council,http://statistics.data.gov.uk/id/local-authority/30UE,Business Support,1095,Business Development & Growth,Grants To Other Organisations,40127,Grants and Subscriptions,5031,grants,12/10/2016,116090,"3,000.00",Revenue,NAME REDACTED,76299
Chorley Borough Council,http://statistics.data.gov.uk/id/local-authority/30UE,Business Support,1095,Business Development & Growth,Grants To Other Organisations,40127,Grants and Subscriptions,5031,grants,12/10/2016,116090,"2,197.50",Revenue,NAME REDACTED,76299
Chorley Borough Council,http://statistics.data.gov.uk/id/local-authority/30UE,Corporate Management,1008,Customer & Digital,Other Contributions,40145,Grants and Subscriptions,5031,ADDRESS REDACTED,26/10/2016,116516,537.20,Revenue,NAME REDACTED,74003
Chorley Borough Council,http://statistics.data.gov.uk/id/local-authority/30UE,General Government Grants,,Policy & Governance,Revenue Support Grant,69000,Income not in NCOS,,revenue support grant,07/10/2016,115610,"-109,615.00",Revenue,Department of Communities and Local Government,16280
Chorley Borough Council,http://statistics.data.gov.uk/id/local-authority/30UE,Collection Fund Revenue Accoun,,Policy & Governance,NNDR Central Share,2034,Precepts & Collection Fund,Precept,central sahre,07/10/2016,115610,"1,163,991.00",Revenue,Department of Communities and Local Government,16280
Chorley Borough Council,http://statistics.data.gov.uk/id/local-authority/30UE,Collection Fund Revenue Accoun,,Policy & Governance,NNDR Central Share,2034,Precepts & Collection Fund,Precept,surplus,07/10/2016,115610,"4,865.00",Revenue,Department of Communities and Local Government,16280
Chorley Borough Council,http://statistics.data.gov.uk/id/local-authority/30UE,Tourism,1039,Policy & Governance,Professional Fees,40063,Services,5027,prize money,12/10/2016,116132,400.00,Revenue,NAME REDACTED,71502
Chorley Borough Council,http://statistics.data.gov.uk/id/local-authority/30UE,Service Management & Support,1009,Customer & Digital,Supplies-Grounds Maintenance,40025,"Equipment, Furniture & Materia",5023,Supply 1 days work at ADDRESS REDACTED for 1 man and machine.,07/10/2016,116099,270.00,Revenue,NAME REDACTED,21092
Chorley Borough Council,http://statistics.data.gov.uk/id/local-authority/30UE,Democratic Represent and  Mgnt,1007,Policy & Governance,Grants To Other Organisations,40127,Grants and Subscriptions,5031,grant,26/10/2016,116520,250.00,Revenue,Dig In North West CIC,74336
Chorley Borough Council,http://statistics.data.gov.uk/id/local-authority/30UE,Democratic Represent and  Mgnt,1007,Policy & Governance,Tools & Equipment - Purchase,40003,"Equipment, Furniture & Materia",5023,12 x white Ivy Leaf Tablecloths. 90`` x 108``. Overlock finish. Standard delivery.,12/10/2016,115593,267.22,Revenue,Direct Linen Textiles International Ltd,65206
Chorley Borough Council,http://statistics.data.gov.uk/id/local-authority/30UE,Unapportionable Central OHeads,1009,Early Intervention,HR Recruitment Expenses,15200,Indirect Employee Expenses,5002,DBS checks,07/10/2016,116054,88.00,Revenue,Disclosure & Barring Service,16387
Chorley Borough Council,http://statistics.data.gov.uk/id/local-authority/30UE,Corporate Management,1008,Early Intervention,CRB Disclosure Fees,40070,Services,5027,licencing,07/10/2016,116054,264.00,Revenue,Disclosure & Barring Service,16387
Chorley Borough Council,http://statistics.data.gov.uk/id/local-authority/30UE,Unapportionable Central OHeads,1009,Early Intervention,HR Recruitment Expenses,15200,Indirect Employee Expenses,5002,certificates,07/10/2016,116054,44.00,Revenue,Disclosure & Barring Service,16387
Chorley Borough Council,http://statistics.data.gov.uk/id/local-authority/30UE,Democratic Represent and  Mgnt,1007,Business Development & Growth,Supplies-Grounds Maintenance,40025,"Equipment, Furniture & Materia",5023,"Site investigations to resolve the flooding on Manor Road Allotments including flow tests, camera surveys, trial holes. Subsequent",12/10/2016,115903,"5,250.40",Revenue,Drain Alert Ltd,16961
Chorley Borough Council,http://statistics.data.gov.uk/id/local-authority/30UE,Democratic Represent and  Mgnt,1007,Business Development & Growth,Supplies-Grounds Maintenance,40025,"Equipment, Furniture & Materia",5023,materials,12/10/2016,115903,"4,338.08",Revenue,Drain Alert Ltd,16961
Chorley Borough Council,http://statistics.data.gov.uk/id/local-authority/30UE,Central Support Services,1009,Customer & Digital,Mobile Voice and Data,40086,Communication and Computing,5028,Oct-16,07/10/2016,116066,480.71,Revenue,EE - Orange,16486
Chorley Borough Council,http://statistics.data.gov.uk/id/local-authority/30UE,Central Support Services,1009,Customer & Digital,Mobile Voice and Data,40086,Communication and Computing,5028,Sep-16,07/10/2016,116000,"2,046.16",Revenue,EE LIMITED,63366
Chorley Borough Council,http://statistics.data.gov.uk/id/local-authority/30UE,Central Support Services,1009,Early Intervention,Sports Development Initiatives,40186,Miscellaneous Expenses,5034,"For two places on Leadership in Running Fitness Course, Sunday 14th February, Bolton. code NC0690",05/10/2016,115843,330.00,Revenue,England  Athletics Limited,21011
Chorley Borough Council,http://statistics.data.gov.uk/id/local-authority/30UE,Service Management & Support,1009,Customer & Digital,Hire Of Transport,30028,Contrct Hire & Operating Lease,5018,Hire of tractor and side arm flail at price quoted via the chest through until 31/03/2017 Please use this order number as from,05/10/2016,115921,"1,639.83",Revenue,F R Sharrock Ltd,18091
Chorley Borough Council,http://statistics.data.gov.uk/id/local-authority/30UE,Service Management & Support,1009,Customer & Digital,Vehicle Maintenance,30045,Direct Transport Costs,5016,Carryout repairs to steering on PO14BFX as per Pro-Forma No 197071,05/10/2016,115954,"1,452.35",Revenue,F R Sharrock Ltd,18091
Chorley Borough Council,http://statistics.data.gov.uk/id/local-authority/30UE,Service Management & Support,1009,Customer & Digital,Hire Of Transport,30028,Contrct Hire & Operating Lease,5018,Hire of tractor and side arm flail at price quoted via the chest through until 31/03/2017 Please use this order number ,28/10/2016,116529,"1,565.29",Revenue,F R Sharrock Ltd,18091
Chorley Borough Council,http://statistics.data.gov.uk/id/local-authority/30UE,Business Support,1095,Business Development & Growth,Grants To Other Organisations,40127,Grants and Subscriptions,5031,shop grant,26/10/2016,116063,"4,635.00",Revenue,First Call Communications,20031
Chorley Borough Council,http://statistics.data.gov.uk/id/local-authority/30UE,Service Management & Support,1009,Customer & Digital,Supplies-Grounds Maintenance,40025,"Equipment, Furniture & Materia",5023,Please supply 45 x 15 litre Q2 line marking solution.  Delivery address is ADDRESS REDACTED,12/10/2016,116073,"1,211.85",Revenue,Fleet Line Markers,60558
Chorley Borough Council,http://statistics.data.gov.uk/id/local-authority/30UE,Democratic Represent and  Mgnt,1007,Policy & Governance,Legal Fees,40171,Miscellaneous Expenses,5034,Prof fees in relation to the landslip claim at 91/92 ADDRESS REDACTED for the period 12 May 2016 - 29 September 2016,21/10/2016,116374,650.00,Revenue,Forbes Solicitors,17527
Chorley Borough Council,http://statistics.data.gov.uk/id/local-authority/30UE,Business Support,1095,Business Development & Growth,Grants To Other Organisations,40127,Grants and Subscriptions,5031,Big grant,12/10/2016,116064,"1,200.00",Revenue,Freckle Boutique,75153
Chorley Borough Council,http://statistics.data.gov.uk/id/local-authority/30UE,Service Management & Support,1009,Customer & Digital,Vehicle Maintenance,30045,Direct Transport Costs,5016,axled vehicles,26/10/2016,116435,720.00,Revenue,Freight Transport Assoc Ltd,16333
Chorley Borough Council,http://statistics.data.gov.uk/id/local-authority/30UE,Homelessness,1075,Early Intervention,Furniture - Purchase,40012,"Equipment, Furniture & Materia",5023,"York Dining Table, Square, 2 Seat, Beech",07/10/2016,115867,116.68,Revenue,Furniture Resource Centre Ltd,22085
Chorley Borough Council,http://statistics.data.gov.uk/id/local-authority/30UE,Homelessness,1075,Early Intervention,Furniture - Purchase,40012,"Equipment, Furniture & Materia",5023,"York Wooden Dining Chair, Contract Standard, Beech",07/10/2016,115867,555.20,Revenue,Furniture Resource Centre Ltd,22085
Chorley Borough Council,http://statistics.data.gov.uk/id/local-authority/30UE,Service Management & Support,1009,Customer & Digital,Registered Plant - Maintenance,40247,"Equipment, Furniture & Materia",5023,Fit trackers to  6 x council as requested as on invoice number 88375,26/10/2016,116499,300.00,Revenue,G & S Auto Electrical Services,16323
Chorley Borough Council,http://statistics.data.gov.uk/id/local-authority/30UE,Democratic Represent and  Mgnt,1007,Policy & Governance,Conferences - Members,40121,Expenses,5030,26 January 2017 - event - Supplying Affordable Housing in the North - Central Manchester - delegate - NAME REDACTED ,21/10/2016,116400,346.50,Revenue,GovNet Communications,18230
Chorley Borough Council,http://statistics.data.gov.uk/id/local-authority/30UE,Building Control,1090,Policy & Governance,HM Land Registry Fees,40174,Miscellaneous Expenses,5034,building control,07/10/2016,115664,4.00,Revenue,H M Land Registry,17567
Chorley Borough Council,http://statistics.data.gov.uk/id/local-authority/30UE,Central Support Services,1009,Policy & Governance,HM Land Registry Fees,40174,Miscellaneous Expenses,5034,environment,07/10/2016,115664,34.00,Revenue,H M Land Registry,17567
Chorley Borough Council,http://statistics.data.gov.uk/id/local-authority/30UE,Housing Strategy,1069,Policy & Governance,HM Land Registry Fees,40174,Miscellaneous Expenses,5034,housing,07/10/2016,115664,21.00,Revenue,H M Land Registry,17567
Chorley Borough Council,http://statistics.data.gov.uk/id/local-authority/30UE,Unapportionable Central OHeads,1009,Policy & Governance,HM Land Registry Fees,40174,Miscellaneous Expenses,5034,legal,07/10/2016,115664,21.00,Revenue,H M Land Registry,17567
Chorley Borough Council,http://statistics.data.gov.uk/id/local-authority/30UE,Unapportionable Central OHeads,1009,Policy & Governance,HM Land Registry Fees,40174,Miscellaneous Expenses,5034,liberata,07/10/2016,115664,104.00,Revenue,H M Land Registry,17567
Chorley Borough Council,http://statistics.data.gov.uk/id/local-authority/30UE,Unapportionable Central OHeads,1009,Policy & Governance,HM Land Registry Fees,40174,Miscellaneous Expenses,5034,local tax,07/10/2016,115664,15.00,Revenue,H M Land Registry,17567
Chorley Borough Council,http://statistics.data.gov.uk/id/local-authority/30UE,Development Control,1091,Policy & Governance,HM Land Registry Fees,40174,Miscellaneous Expenses,5034,planning,07/10/2016,115664,195.00,Revenue,H M Land Registry,17567
Chorley Borough Council,http://statistics.data.gov.uk/id/local-authority/30UE,Central Support Services,1009,Policy & Governance,HM Land Registry Fees,40174,Miscellaneous Expenses,5034,people,07/10/2016,115664,6.00,Revenue,H M Land Registry,17567
Chorley Borough Council,http://statistics.data.gov.uk/id/local-authority/30UE,Economic Development,1096,Policy & Governance,Miscellaneous Expenses,40200,Miscellaneous Expenses,5034,economic development,07/10/2016,115664,22.00,Revenue,H M Land Registry,17567
Chorley Borough Council,http://statistics.data.gov.uk/id/local-authority/30UE,Corporate Management,1008,Policy & Governance,External Audit,40064,Services,5027,finance,07/10/2016,115664,36.00,Revenue,H M Land Registry,17567
Chorley Borough Council,http://statistics.data.gov.uk/id/local-authority/30UE,Unapportionable Central OHeads,1009,Policy & Governance,Computer Equipment-Maintenance,40105,Communication and Computing,5028,Annual Support for Troy Printer 9 Oct 2016 to 16 Aug 2017,21/10/2016,116202,530.00,Revenue,Hague Computer Supplies Ltd,56014
Chorley Borough Council,http://statistics.data.gov.uk/id/local-authority/30UE,Business Support,1095,Customer & Digital,Professional Fees,40063,Services,5027,legal work,05/10/2016,115429,"4,000.00",Revenue,Hill Dickinson,20415
Chorley Borough Council,http://statistics.data.gov.uk/id/local-authority/30UE,Business Support,1095,Customer & Digital,Professional Fees,40063,Services,5027,Professional Fees,05/10/2016,115429,18.00,Revenue,Hill Dickinson,20415
Chorley Borough Council,http://statistics.data.gov.uk/id/local-authority/30UE,Capital,Capital,Policy & Governance,Purchase Money,3027,Capital Expenditure,Capital,stamp duty land tax,05/10/2016,115987,"25,380.00",Capital,HM Revenue & Customs,56499
Chorley Borough Council,http://statistics.data.gov.uk/id/local-authority/30UE,Unapportionable Central OHeads,1009,Policy & Governance,Miscellaneous Expenses,40200,Miscellaneous Expenses,5034,Healthcare PSA Settleemnt,14/10/2016,116211,"7,685.56",Revenue,HM Revenue & Customs,21907
Chorley Borough Council,http://statistics.data.gov.uk/id/local-authority/30UE,Central Support Services,1009,Early Intervention,Children's Activities,40188,Miscellaneous Expenses,5034,Delivery staff for summer activity programme,26/10/2016,116470,368.00,Revenue,Holy Cross R C High School,18181
Chorley Borough Council,http://statistics.data.gov.uk/id/local-authority/30UE,Central Support Services,1009,Early Intervention,Rent/Hire Of Premises,20017,Premises Rents,5007,Hire of facility for summer activity programme throughout August,26/10/2016,116470,345.00,Revenue,Holy Cross R C High School,18181
Chorley Borough Council,http://statistics.data.gov.uk/id/local-authority/30UE,Community Development,1097,Policy & Governance,Core Funding Grants,40133,Grants and Subscriptions,5031,Delivery of a family Support service in Chorley 2nd instalment 2016/17,21/10/2016,116418,"11,000.00",Revenue,Home-Start Central Lancashire Ltd,20585
Chorley Borough Council,http://statistics.data.gov.uk/id/local-authority/30UE,Homelessness,1075,Early Intervention,Training Course Fees,17010,Indirect Employee Expenses,5002,Fees for two delegates to attend The Northern Homelessness Conference 2016 on Friday 7th October 2016 at,21/10/2016,115723,380.00,Revenue,Housing Reviews Ltd,76269
Chorley Borough Council,http://statistics.data.gov.uk/id/local-authority/30UE,Central Support Services,1009,Customer & Digital,Consultants` Fees,40077,Services,5027,Chorley Training & Consultancy 200416 Training and Consultancy Services for Uniform and Total Land Charges. 1.Uniform,07/10/2016,115907,"3,000.00",Revenue,IDOX Software Limited,17542
Chorley Borough Council,http://statistics.data.gov.uk/id/local-authority/30UE,Control Accounts,Control,System,Manual Control Account,1,Balance Sheet,Balance,Balance Sheet,07/10/2016,115623,500.00,Revenue,Inland Revenue 065py00102078,17445
Chorley Borough Council,http://statistics.data.gov.uk/id/local-authority/30UE,Unapportionable Central OHeads,1009,Customer & Digital,Computer Equipment-Maintenance,40105,Communication and Computing,5028,"Apple iMac 27&#8722;inch 5K Display: Processor: 4.0GHz Quad&#8722;core Intel Core i7, Turbo Boost up to 4.2GHz, Memory",19/10/2016,116170,"2,983.74",Revenue,Insight Direct (UK) LTD,21768
Chorley Borough Council,http://statistics.data.gov.uk/id/local-authority/30UE,Business Support,1095,Business Development & Growth,Cleaning/Attendants' Services,20041,Cleaning and Domestic Supplies,5012,To provide daily cleaning services to Market Walk Shopping Centre April 206 - March 2017 @ 4310.21 per month,07/10/2016,115908,"4,310.21",Revenue,Interserve,70619
Chorley Borough Council,http://statistics.data.gov.uk/id/local-authority/30UE,Economic Development,1096,Business Development & Growth,Publicity - Advertising,40157,Miscellaneous Expenses,5034,"To Erect, Maintain and Remove Festive Bunting in Chorley TC",21/10/2016,115762,"1,750.00",Revenue,J M Services (North West) Ltd,17837
Chorley Borough Council,http://statistics.data.gov.uk/id/local-authority/30UE,Business Support,1095,Business Development & Growth,Refuse Collection,20037,Cleaning and Domestic Supplies,5012,To supply Waste Compactor services to MWSC HD260TR Serial No:  02601707021135  April 2016 - March 2017,28/10/2016,116513,270.00,Revenue,J&H Rentals Limited,70699
Chorley Borough Council,http://statistics.data.gov.uk/id/local-authority/30UE,Corporate Management,1008,Customer & Digital,Interment Fees - Ashes,60257,Customer & Client Receipts,5064,refund grave plot,12/10/2016,116168,"1,073.00",Revenue,NAME REDACTED,76305
Chorley Borough Council,http://statistics.data.gov.uk/id/local-authority/30UE,Corporate Management,1008,Customer & Digital,Other Contributions,40145,Grants and Subscriptions,5031,ADDRESS REDACTED,21/10/2016,116442,"1,050.00",Revenue,NAME REDACTED,75206
Chorley Borough Council,http://statistics.data.gov.uk/id/local-authority/30UE,Unapportionable Central OHeads,1009,Policy & Governance,HR Recruitment Expenses,15200,Indirect Employee Expenses,5002,Verbal and Numerical Reasoning Tests for Director Recruitment x 12 of each,19/10/2016,116373,921.00,Revenue,JGP Resourcing Ltd,50012
Chorley Borough Council,http://statistics.data.gov.uk/id/local-authority/30UE,Corporate Management,1008,Chief Executive,Premises Related Insurances,20068,Premises Related Insurance,5014,environmental liability,05/10/2016,115855,"15,568.75",Revenue,JLT Speciality Ltd,52747
Chorley Borough Council,http://statistics.data.gov.uk/id/local-authority/30UE,Corporate Management,1008,Customer & Digital,Other Contributions,40145,Grants and Subscriptions,5031,ADDRESS REDACTED,12/10/2016,116169,"5,000.00",Revenue,NAME REDACTED,73918
Chorley Borough Council,http://statistics.data.gov.uk/id/local-authority/30UE,Central Support Services,1009,Customer & Digital,Miscellaneous Expenses,40200,Miscellaneous Expenses,5034,2 @7.2m x 200mm x 75mm green timber,07/10/2016,116101,80.00,Revenue,John H Mayor & Sons Ltd,16635
Chorley Borough Council,http://statistics.data.gov.uk/id/local-authority/30UE,Central Support Services,1009,Customer & Digital,Miscellaneous Expenses,40200,Miscellaneous Expenses,5034,10 @ 2.4m x 100mm x 100mm Planed all round,07/10/2016,116101,140.00,Revenue,John H Mayor & Sons Ltd,16635
Chorley Borough Council,http://statistics.data.gov.uk/id/local-authority/30UE,Central Support Services,1009,Customer & Digital,Miscellaneous Expenses,40200,Miscellaneous Expenses,5034,6 @ 3.6m x 200mm x 50mm planed all round,07/10/2016,116101,54.00,Revenue,John H Mayor & Sons Ltd,16635
Chorley Borough Council,http://statistics.data.gov.uk/id/local-authority/30UE,Central Support Services,1009,Customer & Digital,Miscellaneous Expenses,40200,Miscellaneous Expenses,5034,20 @ 3.6m x 150mm x 50mm green timber,07/10/2016,116101,151.20,Revenue,John H Mayor & Sons Ltd,16635
Chorley Borough Council,http://statistics.data.gov.uk/id/local-authority/30UE,Central Support Services,1009,Customer & Digital,Miscellaneous Expenses,40200,Miscellaneous Expenses,5034,box of 100 bolts @ 200mm x m10,07/10/2016,116101,28.00,Revenue,John H Mayor & Sons Ltd,16635
Chorley Borough Council,http://statistics.data.gov.uk/id/local-authority/30UE,Central Support Services,1009,Customer & Digital,Miscellaneous Expenses,40200,Miscellaneous Expenses,5034,Box of 100m m10 washers,07/10/2016,116101,7.00,Revenue,John H Mayor & Sons Ltd,16635
Chorley Borough Council,http://statistics.data.gov.uk/id/local-authority/30UE,Unapportionable Central OHeads,1009,Policy & Governance,Exhibitions & Special Events,40158,Miscellaneous Expenses,5034,Return Coach travel to Chorley for the Band of the Kings Division for the Chorley Somme 100 Commemoration Event on Saturday,28/10/2016,116542,340.00,Revenue,John Shaw & Son T/A The Travellers Choice,76087
Chorley Borough Council,http://statistics.data.gov.uk/id/local-authority/30UE,Development Control,1091,Customer & Digital,Statutory Notices,40160,Miscellaneous Expenses,5034,Planning Public Notices to appear in the Chorley Guardian April 2016 to March 2017,26/10/2016,115751,458.46,Revenue,Johnston Publishing Ltd,20072
Chorley Borough Council,http://statistics.data.gov.uk/id/local-authority/30UE,Development Control,1091,Customer & Digital,Statutory Notices,40160,Miscellaneous Expenses,5034,Planning Public Notices to appear in the Chorley Guardian April 2016 to March 2017,26/10/2016,116060,432.99,Revenue,Johnston Publishing Ltd,20072
Chorley Borough Council,http://statistics.data.gov.uk/id/local-authority/30UE,Planning Policy,1092,Policy & Governance,Sale Of Property - Advertising,40162,Miscellaneous Expenses,5034,Legal Notice in the Chorley Guardian for the sale of POS at the rear of ADDRESS REDACTED,28/10/2016,116555,339.60,Revenue,Johnston Publishing Ltd,20072
Chorley Borough Council,http://statistics.data.gov.uk/id/local-authority/30UE,Capital,Capital,Early Intervention,Grants,3002,Capital Expenditure,Capital,ADDRESS REDACTED,12/10/2016,116167,"5,415.00",Capital,K Berry Ltd,16421
Chorley Borough Council,http://statistics.data.gov.uk/id/local-authority/30UE,Central Support Services,1009,Customer & Digital,Miscellaneous Expenses,40200,Miscellaneous Expenses,5034,Ground resurfacing works at ADDRESS REDACTED Quotation No. 5901,21/10/2016,116191,"2,592.00",Revenue,K Darlington and Son,21930
Chorley Borough Council,http://statistics.data.gov.uk/id/local-authority/30UE,Control Accounts,Control,Customer & Digital,Manual Control Account,1,Balance Sheet,Balance,Balance Sheet,07/10/2016,115933,296.17,Revenue,NAME REDACTED,76294
Chorley Borough Council,http://statistics.data.gov.uk/id/local-authority/30UE,Business Support,1095,Business Development & Growth,Grants To Other Organisations,40127,Grants and Subscriptions,5031,grant,12/10/2016,116091,"4,148.12",Revenue,NAME REDACTED,17065
Chorley Borough Council,http://statistics.data.gov.uk/id/local-authority/30UE,Control Accounts,Control,Policy & Governance,General Balances,100,Balance Sheet,Balance,sals deds,05/10/2016,115775,"1,177.78",Revenue,Labour Councillors Association,17577
Chorley Borough Council,http://statistics.data.gov.uk/id/local-authority/30UE,Unapportionable Central OHeads,1009,Policy & Governance,Exhibitions & Special Events,40158,Miscellaneous Expenses,5034,Advertising for Chorley Live 2016,19/10/2016,116209,"1,497.88",Revenue,Lancashire Broadcasting Company Ltd,51152
Chorley Borough Council,http://statistics.data.gov.uk/id/local-authority/30UE,Precepts and Collection Fund,Precepts,Policy & Governance,LCC Precept,2009,Precepts & Collection Fund,Precept,ctax,07/10/2016,115613,"4,181,662.00",Revenue,Lancashire County Council,18386
Chorley Borough Council,http://statistics.data.gov.uk/id/local-authority/30UE,Collection Fund Revenue Accoun,,Policy & Governance,NNDR County Share,2036,Precepts & Collection Fund,Precept,bus rates,07/10/2016,115613,"262,993.00",Revenue,Lancashire County Council,18386
Chorley Borough Council,http://statistics.data.gov.uk/id/local-authority/30UE,Capital,Capital,Early Intervention,Grants,3002,Capital Expenditure,Capital,ADDRESS REDACTED,12/10/2016,116166,"4,534.00",Capital,Lancashire County Council,17758
Chorley Borough Council,http://statistics.data.gov.uk/id/local-authority/30UE,Corporate Management,1008,Policy & Governance,Other Contributions,40145,Grants and Subscriptions,5031,"Subsidy for the provision of bus services 109A/24A and 6/6A during Q2, and then the extended subsidy for Q3 and Q4 2016/17",19/10/2016,116303,"28,424.10",Revenue,Lancashire County Council,17758
Chorley Borough Council,http://statistics.data.gov.uk/id/local-authority/30UE,Unapportionable Central OHeads,1009,Policy & Governance,Pensions Deficit Recovery Contributions,12003,Direct Employee Expenses,5001,CAY July and Aug,25/10/2016,116457,"35,900.38",Revenue,Lancashire County Council,18386
Chorley Borough Council,http://statistics.data.gov.uk/id/local-authority/30UE,Corporate Management,1008,Policy & Governance,Other Fees,40212,Miscellaneous Expenses,5034,Subsidy for the provision of Meals on Wheels in Chorley up to 2 October 2016,12/10/2016,116111,922.53,Revenue,Lancashire Fayre,62967
Chorley Borough Council,http://statistics.data.gov.uk/id/local-authority/30UE,Unapportionable Central OHeads,1009,Policy & Governance,Pensions Deficit Recovery Contributions,12003,Direct Employee Expenses,5001,deficit aug,07/10/2016,116081,"79,633.33",Revenue,Lancashire Pensions Services,16696
Chorley Borough Council,http://statistics.data.gov.uk/id/local-authority/30UE,Central Support Services,1009,Early Intervention,Sports Development Initiatives,40186,Miscellaneous Expenses,5034,Chorley Council contribution to Lancashire Sport for 2016/17,05/10/2016,115875,"1,500.00",Revenue,Lancashire Sport Partnership,16348
Chorley Borough Council,http://statistics.data.gov.uk/id/local-authority/30UE,Unapportionable Central OHeads,1009,Policy & Governance,Service Fees,40056,Services,5027,Occupational Health Fees - invoice 21100160211,14/10/2016,116160,681.85,Revenue,Lancashire Teaching Hospitals NHS FT,19003
Chorley Borough Council,http://statistics.data.gov.uk/id/local-authority/30UE,Community Development,1097,Policy & Governance,Core Funding Grants,40133,Grants and Subscriptions,5031,VCFS Network Funding to be paid in two instalments,12/10/2016,115888,"7,500.00",Revenue,Lancashire West Citizens Advice Bureaux,17035
Chorley Borough Council,http://statistics.data.gov.uk/id/local-authority/30UE,Business Support,1095,Business Development & Growth,Grants To Other Organisations,40127,Grants and Subscriptions,5031,grant,26/10/2016,116425,"1,162.95",Revenue,Lancashire West Citizens Advice Bureaux,17035
Chorley Borough Council,http://statistics.data.gov.uk/id/local-authority/30UE,Business Support,1095,Business Development & Growth,Grants To Other Organisations,40127,Grants and Subscriptions,5031,grant,26/10/2016,116425,"3,000.00",Revenue,Lancashire West Citizens Advice Bureaux,17035
Chorley Borough Council,http://statistics.data.gov.uk/id/local-authority/30UE,Community Development,1097,Policy & Governance,Grants To Other Organisations,40127,Grants and Subscriptions,5031,2nd half yearly instalment for the delivery of Advice Services in Chorley,26/10/2016,116489,"28,400.00",Revenue,Lancashire West Citizens Advice Bureaux,17035
Chorley Borough Council,http://statistics.data.gov.uk/id/local-authority/30UE,Precepts and Collection Fund,Precepts,Policy & Governance,LCFA Precept,2011,Precepts & Collection Fund,Precept,council tax,07/10/2016,115612,"233,211.00",Revenue,Lancs Combined Fire Authority,17768
Chorley Borough Council,http://statistics.data.gov.uk/id/local-authority/30UE,Collection Fund Revenue Accoun,,Policy & Governance,NNDR Fire Share,2037,Precepts & Collection Fund,Precept,business rates,07/10/2016,115612,"29,222.00",Revenue,Lancs Combined Fire Authority,17768
Chorley Borough Council,http://statistics.data.gov.uk/id/local-authority/30UE,Unapportionable Central OHeads,1009,Policy & Governance,Professional Fees,40063,Services,5027,Counsel advice relating to draft officer report on the market walk extension/S237,05/10/2016,115949,"1,000.00",Revenue,Landmark Chambers,56730
Chorley Borough Council,http://statistics.data.gov.uk/id/local-authority/30UE,Homelessness,1075,Policy & Governance,Car Leasing Payment,14100,Direct Employee Expenses,5001,NAME REDACTED,05/10/2016,115719,"4,166.19",Revenue,LeasePlan UK Ltd T/A Automotive Leasing,65197
Chorley Borough Council,http://statistics.data.gov.uk/id/local-authority/30UE,Homelessness,1075,Policy & Governance,Car Leasing Payment,14100,Direct Employee Expenses,5001,Car Lease,05/10/2016,115719,405.40,Revenue,LeasePlan UK Ltd T/A Automotive Leasing,65197
Chorley Borough Council,http://statistics.data.gov.uk/id/local-authority/30UE,Control Accounts,Control,Policy & Governance,Manual Control Account,1,Balance Sheet,Balance,Balance Sheet,05/10/2016,115719,-405.40,Revenue,LeasePlan UK Ltd T/A Automotive Leasing,65197
Chorley Borough Council,http://statistics.data.gov.uk/id/local-authority/30UE,Unapportionable Central OHeads,1009,Policy & Governance,Car Leasing Payment,14100,Direct Employee Expenses,5001,NAME REDACTED,05/10/2016,115803,"2,964.60",Revenue,Lex Autolease Ltd,70682
Chorley Borough Council,http://statistics.data.gov.uk/id/local-authority/30UE,Unapportionable Central OHeads,1009,Policy & Governance,Car Leasing Payment,14100,Direct Employee Expenses,5001,Car Lease,05/10/2016,115803,256.19,Revenue,Lex Autolease Ltd,70682
Chorley Borough Council,http://statistics.data.gov.uk/id/local-authority/30UE,Control Accounts,Control,Policy & Governance,Manual Control Account,1,Balance Sheet,Balance,Balance Sheet,05/10/2016,115803,-256.19,Revenue,Lex Autolease Ltd,70682
Chorley Borough Council,http://statistics.data.gov.uk/id/local-authority/30UE,Unapportionable Central OHeads,1009,Customer & Digital,Publications,40054,"Printing, Stationery & General",5026,Ryde rating council tax 14ED I 73,26/10/2016,116514,355.45,Revenue,Lexis Nexis UK,16688
Chorley Borough Council,http://statistics.data.gov.uk/id/local-authority/30UE,Unapportionable Central OHeads,1009,Customer & Digital,Professional Fees,14011,Direct Employee Expenses,5001,Capacity Grid Empty Homes Review 2016,14/10/2016,116222,"5,635.50",Revenue,Liberata (Capacity Grid),67989
Chorley Borough Council,http://statistics.data.gov.uk/id/local-authority/30UE,Unapportionable Central OHeads,1009,Policy & Governance,Promotional Expenses,40159,Miscellaneous Expenses,5034,Full page advert in the October edition for Chorley Live,05/10/2016,115922,306.00,Revenue,Local Life 247 Ltd.,63624
Chorley Borough Council,http://statistics.data.gov.uk/id/local-authority/30UE,Service Management & Support,1009,Customer & Digital,Vehicle Maintenance,30045,Direct Transport Costs,5016,Carryout sand blasting and repainting of Chorley Council skip as requested,12/10/2016,116145,700.00,Revenue,M W Rainford,17057
Chorley Borough Council,http://statistics.data.gov.uk/id/local-authority/30UE,Capital,Capital,Early Intervention,Grants,3002,Capital Expenditure,Capital,dfg,14/10/2016,116233,"3,440.00",Capital,M.J Park Building Contractors,20367
Chorley Borough Council,http://statistics.data.gov.uk/id/local-authority/30UE,Unapportionable Central OHeads,1009,Policy & Governance,Agency Staff,13000,Direct Employee Expenses,5001,AGENCY STAFF,05/10/2016,116006,445.15,Revenue,Matrix SCM Ltd,22128
Chorley Borough Council,http://statistics.data.gov.uk/id/local-authority/30UE,Unapportionable Central OHeads,1009,Policy & Governance,Agency Staff,13000,Direct Employee Expenses,5001,AGENCY STAFF,05/10/2016,116006,729.00,Revenue,Matrix SCM Ltd,22128
Chorley Borough Council,http://statistics.data.gov.uk/id/local-authority/30UE,Corporate Management,1008,Policy & Governance,Agency Staff,13000,Direct Employee Expenses,5001,AGENCY STAFF,07/10/2016,116080,"1,742.29",Revenue,Matrix SCM Ltd,22128
Chorley Borough Council,http://statistics.data.gov.uk/id/local-authority/30UE,Unapportionable Central OHeads,1009,Policy & Governance,Agency Staff,13000,Direct Employee Expenses,5001,AGENCY STAFF,07/10/2016,116080,356.12,Revenue,Matrix SCM Ltd,22128
Chorley Borough Council,http://statistics.data.gov.uk/id/local-authority/30UE,Central Support Services,1009,Policy & Governance,Agency Staff,13000,Direct Employee Expenses,5001,AGENCY STAFF,07/10/2016,116080,"3,374.31",Revenue,Matrix SCM Ltd,22128
Chorley Borough Council,http://statistics.data.gov.uk/id/local-authority/30UE,Unapportionable Central OHeads,1009,Policy & Governance,Agency Staff,13000,Direct Employee Expenses,5001,AGENCY STAFF,07/10/2016,116080,728.99,Revenue,Matrix SCM Ltd,22128
Chorley Borough Council,http://statistics.data.gov.uk/id/local-authority/30UE,Corporate Management,1008,Policy & Governance,Agency Staff,13000,Direct Employee Expenses,5001,AGENCY STAFF,26/10/2016,116438,"1,813.70",Revenue,Matrix SCM Ltd,22128
Chorley Borough Council,http://statistics.data.gov.uk/id/local-authority/30UE,Central Support Services,1009,Policy & Governance,Agency Staff,13000,Direct Employee Expenses,5001,AGENCY STAFF,26/10/2016,116438,944.15,Revenue,Matrix SCM Ltd,22128
Chorley Borough Council,http://statistics.data.gov.uk/id/local-authority/30UE,Unapportionable Central OHeads,1009,Customer & Digital,Training Course Fees,17010,Indirect Employee Expenses,5002,Meritec Student Training 1 day course 425 per day. 2 days booked,14/10/2016,116192,850.00,Revenue,Meritec,19498
Chorley Borough Council,http://statistics.data.gov.uk/id/local-authority/30UE,Service Management & Support,1009,Customer & Digital,Supplies-Grounds Maintenance,40025,"Equipment, Furniture & Materia",5023,"Please supply street name plates to Chorley Council specification, as per NAME REDACTED quote dated 22/09/16: ",21/10/2016,116362,411.28,Revenue,Midland Signs (Leicester) Ltd,16606
Chorley Borough Council,http://statistics.data.gov.uk/id/local-authority/30UE,Capital,Capital,Early Intervention,Grants,3002,Capital Expenditure,Capital,dfg,14/10/2016,116231,"4,766.50",Capital,Mint Northwest Ltd,65607
Chorley Borough Council,http://statistics.data.gov.uk/id/local-authority/30UE,Capital,Capital,Early Intervention,Grants,3002,Capital Expenditure,Capital,DFG NAME REDACTED,19/10/2016,116232,"22,328.71",Capital,Mint Northwest Ltd,65607
Chorley Borough Council,http://statistics.data.gov.uk/id/local-authority/30UE,Business Support,1095,Business Development & Growth,Grants To Other Organisations,40127,Grants and Subscriptions,5031,grant,26/10/2016,116518,"3,000.00",Revenue,NAME REDACTED,76331
Chorley Borough Council,http://statistics.data.gov.uk/id/local-authority/30UE,Business Support,1095,Business Development & Growth,Grants To Other Organisations,40127,Grants and Subscriptions,5031,grant,26/10/2016,116518,455.25,Revenue,NAME REDACTED,76331
Chorley Borough Council,http://statistics.data.gov.uk/id/local-authority/30UE,Capital,Capital,Early Intervention,Grants,3002,Capital Expenditure,Capital,ADDRESS REDACTED,12/10/2016,116165,832.00,Capital,Mobility Care Services,70841
Chorley Borough Council,http://statistics.data.gov.uk/id/local-authority/30UE,Private Sector HSG Renewal,1073,Early Intervention,External Contractor,40198,Miscellaneous Expenses,5034,DFG ADDRESS REDACTED,19/10/2016,116253,480.00,Revenue,Mobility Care Services,70841
Chorley Borough Council,http://statistics.data.gov.uk/id/local-authority/30UE,Private Sector HSG Renewal,1073,Early Intervention,External Contractor,40198,Miscellaneous Expenses,5034,dfg ,19/10/2016,116262,640.00,Revenue,Mobility Care Services,70841
Chorley Borough Council,http://statistics.data.gov.uk/id/local-authority/30UE,Private Sector HSG Renewal,1073,Early Intervention,External Contractor,40198,Miscellaneous Expenses,5034,ADDRESS REDACTED,19/10/2016,116268,480.00,Revenue,Mobility Care Services,70841
Chorley Borough Council,http://statistics.data.gov.uk/id/local-authority/30UE,Private Sector HSG Renewal,1073,Early Intervention,External Contractor,40198,Miscellaneous Expenses,5034,ADDRESS REDACTED,19/10/2016,116278,320.00,Revenue,Mobility Care Services,70841
Chorley Borough Council,http://statistics.data.gov.uk/id/local-authority/30UE,Central Support Services,1009,Early Intervention,Sports Development Initiatives,40186,Miscellaneous Expenses,5034,Order for Couch to 5k Tshirts for Chorley Council ordered by NAME REDACTED,19/10/2016,115978,446.25,Revenue,Modern Embroidery Ltd,68723
Chorley Borough Council,http://statistics.data.gov.uk/id/local-authority/30UE,Service Management & Support,1009,Customer & Digital,External Contractor,40198,Miscellaneous Expenses,5034,Brinscall Lodge,19/10/2016,115562,"21,699.09",Revenue,Mott Macdonald Ltd,16200
Chorley Borough Council,http://statistics.data.gov.uk/id/local-authority/30UE,Service Management & Support,1009,Business Development & Growth,External Contractor,40198,Miscellaneous Expenses,5034,credited,30/09/2016,115563,"8,070.00",Revenue,Mott Macdonald Ltd,16200
Chorley Borough Council,http://statistics.data.gov.uk/id/local-authority/30UE,Service Management & Support,1009,Customer & Digital,External Contractor,40198,Miscellaneous Expenses,5034,BRINSCALL LODGE,14/10/2016,115939,300.91,Revenue,Mott Macdonald Ltd,16200
Chorley Borough Council,http://statistics.data.gov.uk/id/local-authority/30UE,Service Management & Support,1009,Customer & Digital,External Contractor,40198,Miscellaneous Expenses,5034,Consultancy fees for Supervising Engineer NAME REDACTED re: Birkacre and Undertakers Duties 08/09/16,12/10/2016,116083,373.50,Revenue,Mott Macdonald Ltd,16200
Chorley Borough Council,http://statistics.data.gov.uk/id/local-authority/30UE,Service Management & Support,1009,Customer & Digital,External Contractor,40198,Miscellaneous Expenses,5034,Carryout works at Adlington war memorial as per your quotation pressure wash repoint as requested. ,19/10/2016,116304,800.00,Revenue,NAME REDACTED,72236
Chorley Borough Council,http://statistics.data.gov.uk/id/local-authority/30UE,Service Management & Support,1009,Customer & Digital,External Contractor,40198,Miscellaneous Expenses,5034,materials,19/10/2016,116304,400.00,Revenue,NAME REDACTED,72236
Chorley Borough Council,http://statistics.data.gov.uk/id/local-authority/30UE,Service Management & Support,1009,Customer & Digital,External Contractor,40198,Miscellaneous Expenses,5034,Carryout works at to renew fencing at Woodlands Meadow as per quote received to NAME REDACTED,26/10/2016,116510,361.52,Revenue,NAME REDACTED,72236
Chorley Borough Council,http://statistics.data.gov.uk/id/local-authority/30UE,Service Management & Support,1009,Customer & Digital,External Contractor,40198,Miscellaneous Expenses,5034,materieals,26/10/2016,116510,278.48,Revenue,NAME REDACTED,72236
Chorley Borough Council,http://statistics.data.gov.uk/id/local-authority/30UE,Business Support,1095,Business Development & Growth,Grants To Other Organisations,40127,Grants and Subscriptions,5031,shop grant,26/10/2016,116426,"4,834.68",Revenue,NAME REDACTED,68705
Chorley Borough Council,http://statistics.data.gov.uk/id/local-authority/30UE,Business Support,1095,Business Development & Growth,Grants To Other Organisations,40127,Grants and Subscriptions,5031,subsidy 1,26/10/2016,116427,355.07,Revenue,NAME REDACTED,76222
Chorley Borough Council,http://statistics.data.gov.uk/id/local-authority/30UE,Corporate Management,1008,Customer & Digital,Other Contributions,40145,Grants and Subscriptions,5031,ADDRESS REDACTED,21/10/2016,116443,"5,000.00",Revenue,NAME REDACTED,73965
Chorley Borough Council,http://statistics.data.gov.uk/id/local-authority/30UE,Service Management & Support,1009,Customer & Digital,Registered Plant - Maintenance,40247,"Equipment, Furniture & Materia",5023,Carryout grinding of 10`` Ransome Parkway cutting cylinder and supply 24 x cylinder bearings for Ransomes triple mowers ,19/10/2016,116242,300.00,Revenue,MW Grass Machinery,21616
Chorley Borough Council,http://statistics.data.gov.uk/id/local-authority/30UE,Unapportionable Central OHeads,1009,Policy & Governance,Exhibitions & Special Events,40158,Miscellaneous Expenses,5034,4500 A6 Chorley live programmes,12/10/2016,115938,831.00,Revenue,N B Colour Print Ltd,17917
Chorley Borough Council,http://statistics.data.gov.uk/id/local-authority/30UE,Central Support Services,1009,Early Intervention,Miscellaneous Expenses,40200,Miscellaneous Expenses,5034,Supply 35 yard skip on Weds 31st August 2016 deliver contour homes office ADDRESS REDACTED deliver 8.30am & collect,07/10/2016,115493,438.84,Revenue,Neales Waste Management,17583
Chorley Borough Council,http://statistics.data.gov.uk/id/local-authority/30UE,Business Support,1095,Business Development & Growth,Refuse Collection,20037,Cleaning and Domestic Supplies,5012,Market Walk YARD 1 - General Waste compacted - 35 Cubic Yard Roll On / Roll Off Skip from Compactor,19/10/2016,116321,120.96,Revenue,Neales Waste Management,17583
Chorley Borough Council,http://statistics.data.gov.uk/id/local-authority/30UE,Business Support,1095,Business Development & Growth,Refuse Collection,20037,Cleaning and Domestic Supplies,5012,Market Walk YARD 1 - General Waste Compacted Disposal Costs per tonne (variable depended on weight collected),19/10/2016,116321,883.89,Revenue,Neales Waste Management,17583
Chorley Borough Council,http://statistics.data.gov.uk/id/local-authority/30UE,Business Support,1095,Business Development & Growth,Refuse Collection,20037,Cleaning and Domestic Supplies,5012,Market Walk YARD 1 - Cardboard and plastic film 35 Cubic yard Ro Ro skip,19/10/2016,116321,216.56,Revenue,Neales Waste Management,17583
Chorley Borough Council,http://statistics.data.gov.uk/id/local-authority/30UE,Business Support,1095,Business Development & Growth,Refuse Collection,20037,Cleaning and Domestic Supplies,5012,Market Walk YARD 3 - cardboard and plastic film - 35 cubic yard Ro Ro skip,19/10/2016,116325,150.00,Revenue,Neales Waste Management,17583
Chorley Borough Council,http://statistics.data.gov.uk/id/local-authority/30UE,Business Support,1095,Business Development & Growth,Refuse Collection,20037,Cleaning and Domestic Supplies,5012,Market Walk YARD 3 - general waste - x2  8 cubic yard FEL skip Lift Costs,19/10/2016,116325,220.00,Revenue,Neales Waste Management,17583
Chorley Borough Council,http://statistics.data.gov.uk/id/local-authority/30UE,Unapportionable Central OHeads,1009,Chief Executive,Stationery,40050,"Printing, Stationery & General",5026,Newspapers supplied to Union Street April 2016 to March 2017,12/10/2016,116172,393.30,Revenue,Nooze `n` Booze,19382
Chorley Borough Council,http://statistics.data.gov.uk/id/local-authority/30UE,Unapportionable Central OHeads,1009,Policy & Governance,Laundry,40042,"Clothing, Uniforms and Laundry",5025,"Table linen laundered and pressed, collected and delivered up to Friday 16th September 2016 Invoice number 360",21/10/2016,116384,348.50,Revenue,North West Ironing & Laundry Centre,20450
Chorley Borough Council,http://statistics.data.gov.uk/id/local-authority/30UE,Service Management & Support,1009,Customer & Digital,Hire Of Transport,30028,Contrct Hire & Operating Lease,5018,Hire of Ford Transit 3.5 tonne crewcab tipper reg NL12OFG for 25 week period as per quote,05/10/2016,115982,345.00,Revenue,Northgate Vehicle Hire (NW) Ltd,17360
Chorley Borough Council,http://statistics.data.gov.uk/id/local-authority/30UE,Service Management & Support,1009,Customer & Digital,Hire Of Transport,30028,Contrct Hire & Operating Lease,5018,Hire of Ford Transit 3.5 tonne crewcab tipper reg NL12ONR for 25 week period as per quote,05/10/2016,115982,345.00,Revenue,Northgate Vehicle Hire (NW) Ltd,17360
Chorley Borough Council,http://statistics.data.gov.uk/id/local-authority/30UE,Service Management & Support,1009,Customer & Digital,Hire Of Transport,30028,Contrct Hire & Operating Lease,5018,Hire of Ford Transit 3.5 tonne crewcab tipper reg NK13YPT for 25 week period as per quote,05/10/2016,115982,345.00,Revenue,Northgate Vehicle Hire (NW) Ltd,17360
Chorley Borough Council,http://statistics.data.gov.uk/id/local-authority/30UE,Service Management & Support,1009,Customer & Digital,Hire Of Transport,30028,Contrct Hire & Operating Lease,5018,Hire of Ford Transit 3.5 tonne tipper reg FE65BRF for 25 week period as per quote,05/10/2016,115982,276.00,Revenue,Northgate Vehicle Hire (NW) Ltd,17360
Chorley Borough Council,http://statistics.data.gov.uk/id/local-authority/30UE,Service Management & Support,1009,Customer & Digital,Hire Of Transport,30028,Contrct Hire & Operating Lease,5018,Hire of Ford Transit 3.5 tonne tipper reg WN65MWW for 25 week period as per quote,05/10/2016,115982,276.00,Revenue,Northgate Vehicle Hire (NW) Ltd,17360
Chorley Borough Council,http://statistics.data.gov.uk/id/local-authority/30UE,Service Management & Support,1009,Customer & Digital,Hire Of Transport,30028,Contrct Hire & Operating Lease,5018,Hire of Ford Transit 3.5 tonne tipper reg WN65MHO for 25 week period as per quote,05/10/2016,115982,276.00,Revenue,Northgate Vehicle Hire (NW) Ltd,17360
Chorley Borough Council,http://statistics.data.gov.uk/id/local-authority/30UE,Service Management & Support,1009,Customer & Digital,Hire Of Transport,30028,Contrct Hire & Operating Lease,5018,Hire of Ford Transit 3.5 tonne tipper reg WN65UBO for 25 week period as per quote,05/10/2016,115982,276.00,Revenue,Northgate Vehicle Hire (NW) Ltd,17360
Chorley Borough Council,http://statistics.data.gov.uk/id/local-authority/30UE,Service Management & Support,1009,Customer & Digital,Hire Of Transport,30028,Contrct Hire & Operating Lease,5018,Hire of Ford Transit 3.5 tonne tipper reg WU65KZZfor 25 week period as per quote,05/10/2016,115982,276.00,Revenue,Northgate Vehicle Hire (NW) Ltd,17360
Chorley Borough Council,http://statistics.data.gov.uk/id/local-authority/30UE,Service Management & Support,1009,Customer & Digital,Hire Of Transport,30028,Contrct Hire & Operating Lease,5018,Hire of Ford Transit 3.5 tonne tipper reg ND63YEG for 25 week period as per quote,05/10/2016,115982,276.00,Revenue,Northgate Vehicle Hire (NW) Ltd,17360
Chorley Borough Council,http://statistics.data.gov.uk/id/local-authority/30UE,Service Management & Support,1009,Customer & Digital,Hire Of Transport,30028,Contrct Hire & Operating Lease,5018,Hire of Ford Transit crewcab NL12OFG for 6 week period at price quoted,05/10/2016,115982,147.86,Revenue,Northgate Vehicle Hire (NW) Ltd,17360
Chorley Borough Council,http://statistics.data.gov.uk/id/local-authority/30UE,Service Management & Support,1009,Customer & Digital,Hire Of Transport,30028,Contrct Hire & Operating Lease,5018,Hire of Ford Transit crewcab NL12ONR for 6 week period at price quoted,05/10/2016,115982,147.86,Revenue,Northgate Vehicle Hire (NW) Ltd,17360
Chorley Borough Council,http://statistics.data.gov.uk/id/local-authority/30UE,Service Management & Support,1009,Customer & Digital,Hire Of Transport,30028,Contrct Hire & Operating Lease,5018,Hire of Ford Transit crewcab NK13YPT for 6 week period at price quoted,05/10/2016,115982,147.86,Revenue,Northgate Vehicle Hire (NW) Ltd,17360
Chorley Borough Council,http://statistics.data.gov.uk/id/local-authority/30UE,Service Management & Support,1009,Customer & Digital,Hire Of Transport,30028,Contrct Hire & Operating Lease,5018,Hire of Ford Transit tipper Reg FE65BRF for 6 week period at price quoted,05/10/2016,115982,118.29,Revenue,Northgate Vehicle Hire (NW) Ltd,17360
Chorley Borough Council,http://statistics.data.gov.uk/id/local-authority/30UE,Service Management & Support,1009,Customer & Digital,Hire Of Transport,30028,Contrct Hire & Operating Lease,5018,Hire of Ford Transit tipper Reg WN65MWW for 6 week period at price quoted,05/10/2016,115982,118.29,Revenue,Northgate Vehicle Hire (NW) Ltd,17360
Chorley Borough Council,http://statistics.data.gov.uk/id/local-authority/30UE,Service Management & Support,1009,Customer & Digital,Hire Of Transport,30028,Contrct Hire & Operating Lease,5018,Hire of Ford Transit tipper Reg WN65MHO for 6 week period at price quoted,05/10/2016,115982,118.29,Revenue,Northgate Vehicle Hire (NW) Ltd,17360
Chorley Borough Council,http://statistics.data.gov.uk/id/local-authority/30UE,Service Management & Support,1009,Customer & Digital,Hire Of Transport,30028,Contrct Hire & Operating Lease,5018,Hire of Ford Transit tipper Reg WV65UBD for 6 week period at price quoted,05/10/2016,115982,118.29,Revenue,Northgate Vehicle Hire (NW) Ltd,17360
Chorley Borough Council,http://statistics.data.gov.uk/id/local-authority/30UE,Service Management & Support,1009,Customer & Digital,Hire Of Transport,30028,Contrct Hire & Operating Lease,5018,Hire of Ford Transit tipper Reg WU65KZZ for 6 week period at price quoted,05/10/2016,115982,118.29,Revenue,Northgate Vehicle Hire (NW) Ltd,17360
Chorley Borough Council,http://statistics.data.gov.uk/id/local-authority/30UE,Service Management & Support,1009,Customer & Digital,Hire Of Transport,30028,Contrct Hire & Operating Lease,5018,Hire of Ford Transit tipper Reg ND63YEG for 6 week period at price quoted,05/10/2016,115982,118.29,Revenue,Northgate Vehicle Hire (NW) Ltd,17360
Chorley Borough Council,http://statistics.data.gov.uk/id/local-authority/30UE,Democratic Represent and  Mgnt,1007,Business Development & Growth,Electricity,20013,Energy Costs,5006,tunley holme,05/10/2016,115885,314.19,Revenue,Npower Commercial Gas,16814
Chorley Borough Council,http://statistics.data.gov.uk/id/local-authority/30UE,Democratic Represent and  Mgnt,1007,Business Development & Growth,Electricity,20013,Energy Costs,5006,Tunley Holme,21/10/2016,116250,317.89,Revenue,Npower Commercial Gas,16814
Chorley Borough Council,http://statistics.data.gov.uk/id/local-authority/30UE,Democratic Represent and  Mgnt,1007,Business Development & Growth,Electricity,20013,Energy Costs,5006,Harpers Lane Rec,21/10/2016,116250,56.08,Revenue,Npower Commercial Gas,16814
Chorley Borough Council,http://statistics.data.gov.uk/id/local-authority/30UE,Service Management & Support,1009,Business Development & Growth,Electricity,20013,Energy Costs,5006,Gillett Playing fields,21/10/2016,116250,17.27,Revenue,Npower Commercial Gas,16814
Chorley Borough Council,http://statistics.data.gov.uk/id/local-authority/30UE,Democratic Represent and  Mgnt,1007,Business Development & Growth,Electricity,20013,Energy Costs,5006,King george playing fields,21/10/2016,116250,25.19,Revenue,Npower Commercial Gas,16814
Chorley Borough Council,http://statistics.data.gov.uk/id/local-authority/30UE,Economic Development,1096,Business Development & Growth,Electricity,20013,Energy Costs,5006,Market office,21/10/2016,116250,"3,748.77",Revenue,Npower Commercial Gas,16814
Chorley Borough Council,http://statistics.data.gov.uk/id/local-authority/30UE,Democratic Represent and  Mgnt,1007,Business Development & Growth,Electricity,20013,Energy Costs,5006,eaves green,21/10/2016,116250,246.77,Revenue,Npower Commercial Gas,16814
Chorley Borough Council,http://statistics.data.gov.uk/id/local-authority/30UE,Community Development,1097,Business Development & Growth,Electricity,20013,Energy Costs,5006,information and advice,21/10/2016,116250,224.84,Revenue,Npower Commercial Gas,16814
Chorley Borough Council,http://statistics.data.gov.uk/id/local-authority/30UE,Community Development,1097,Business Development & Growth,Electricity,20013,Energy Costs,5006,ground floor information and advice,21/10/2016,116250,94.35,Revenue,Npower Commercial Gas,16814
Chorley Borough Council,http://statistics.data.gov.uk/id/local-authority/30UE,Democratic Represent and  Mgnt,1007,Business Development & Growth,Electricity,20013,Energy Costs,5006,Coronation Rec,21/10/2016,116250,33.32,Revenue,Npower Commercial Gas,16814
Chorley Borough Council,http://statistics.data.gov.uk/id/local-authority/30UE,Democratic Represent and  Mgnt,1007,Business Development & Growth,Electricity,20013,Energy Costs,5006,Astley village cc,21/10/2016,116250,263.58,Revenue,Npower Commercial Gas,16814
Chorley Borough Council,http://statistics.data.gov.uk/id/local-authority/30UE,Democratic Represent and  Mgnt,1007,Business Development & Growth,Electricity,20013,Energy Costs,5006,Astley hall cottage,21/10/2016,116250,281.61,Revenue,Npower Commercial Gas,16814
Chorley Borough Council,http://statistics.data.gov.uk/id/local-authority/30UE,Corporate Management,1008,Business Development & Growth,Electricity,20013,Energy Costs,5006,cemetery chapel,21/10/2016,116250,9.03,Revenue,Npower Commercial Gas,16814
Chorley Borough Council,http://statistics.data.gov.uk/id/local-authority/30UE,Corporate Management,1008,Business Development & Growth,Electricity,20013,Energy Costs,5006,cemetry offcie,21/10/2016,116250,99.54,Revenue,Npower Commercial Gas,16814
Chorley Borough Council,http://statistics.data.gov.uk/id/local-authority/30UE,Unapportionable Central OHeads,1009,Business Development & Growth,Electricity,20013,Energy Costs,5006,Union Street,21/10/2016,116250,"2,887.59",Revenue,Npower Commercial Gas,16814
Chorley Borough Council,http://statistics.data.gov.uk/id/local-authority/30UE,Unapportionable Central OHeads,1009,Business Development & Growth,Electricity,20013,Energy Costs,5006,Bengal St,21/10/2016,116250,571.23,Revenue,Npower Commercial Gas,16814
Chorley Borough Council,http://statistics.data.gov.uk/id/local-authority/30UE,Unapportionable Central OHeads,1009,Business Development & Growth,Electricity,20013,Energy Costs,5006,Town Hall,21/10/2016,116250,"1,796.41",Revenue,Npower Commercial Gas,16814
Chorley Borough Council,http://statistics.data.gov.uk/id/local-authority/30UE,Economic Development,1096,Business Development & Growth,Electricity,20013,Energy Costs,5006,portacabin stall,21/10/2016,116250,9.03,Revenue,Npower Commercial Gas,16814
Chorley Borough Council,http://statistics.data.gov.uk/id/local-authority/30UE,Homelessness,1075,Business Development & Growth,Electricity,20013,Energy Costs,5006,Cotswold,21/10/2016,116250,991.16,Revenue,Npower Commercial Gas,16814
Chorley Borough Council,http://statistics.data.gov.uk/id/local-authority/30UE,Business Support,1095,Business Development & Growth,Electricity,20013,Energy Costs,5006,Leigh Arms,21/10/2016,116250,750.32,Revenue,Npower Commercial Gas,16814
Chorley Borough Council,http://statistics.data.gov.uk/id/local-authority/30UE,Democratic Represent and  Mgnt,1007,Business Development & Growth,Electricity,20013,Energy Costs,5006,tunley,21/10/2016,116250,78.68,Revenue,Npower Commercial Gas,16814
Chorley Borough Council,http://statistics.data.gov.uk/id/local-authority/30UE,Business Support,1095,Business Development & Growth,Electricity,20013,Energy Costs,5006,Landlords,21/10/2016,116250,"1,594.47",Revenue,Npower Commercial Gas,16814
Chorley Borough Council,http://statistics.data.gov.uk/id/local-authority/30UE,Democratic Represent and  Mgnt,1007,Business Development & Growth,Electricity,20013,Energy Costs,5006,ranglets rec,21/10/2016,116250,38.07,Revenue,Npower Commercial Gas,16814
Chorley Borough Council,http://statistics.data.gov.uk/id/local-authority/30UE,Recreation & Sport,1037,Business Development & Growth,Electricity,20013,Energy Costs,5006,Buckshaw,21/10/2016,116250,18.27,Revenue,Npower Commercial Gas,16814
Chorley Borough Council,http://statistics.data.gov.uk/id/local-authority/30UE,Parking Services,1066,Business Development & Growth,Electricity,20013,Energy Costs,5006,car park,28/10/2016,116613,1.00,Revenue,Npower Commercial Gas,16814
Chorley Borough Council,http://statistics.data.gov.uk/id/local-authority/30UE,Parking Services,1066,Business Development & Growth,Electricity,20013,Energy Costs,5006,pay and display,28/10/2016,116613,99.18,Revenue,Npower Commercial Gas,16814
Chorley Borough Council,http://statistics.data.gov.uk/id/local-authority/30UE,Central Support Services,1009,Business Development & Growth,Electricity,20013,Energy Costs,5006,cctv,28/10/2016,116613,245.34,Revenue,Npower Commercial Gas,16814
Chorley Borough Council,http://statistics.data.gov.uk/id/local-authority/30UE,Parking Services,1066,Business Development & Growth,External Contractors,50008,Private Contractors,5042,"Provision of off street car park enforcement, cash collection, cash counting facilities third party bulk cash collections April 2016",07/10/2016,115942,"4,057.82",Revenue,NSL Limited,67253
Chorley Borough Council,http://statistics.data.gov.uk/id/local-authority/30UE,Democratic Represent and  Mgnt,1007,Policy & Governance,Building Services Maintenance Other,20076,Fixtures and Fittings,5010,"Conservation works on Astley Hall One day visit to Chorley 480 Expenses (hotel, train) 160 Paint analysis  80 Mortar analysis                           ",19/10/2016,116293,820.00,Revenue,Odgers Conservation Consultants,68303
Chorley Borough Council,http://statistics.data.gov.uk/id/local-authority/30UE,Business Support,1095,Business Development & Growth,Electricity,20013,Energy Costs,5006,HSS,19/10/2016,115467,"1,269.55",Revenue,Opus Energy Ltd,65093
Chorley Borough Council,http://statistics.data.gov.uk/id/local-authority/30UE,Tourism,1039,Policy & Governance,Tools & Equipment - Hire,40004,"Equipment, Furniture & Materia",5023,Hire of PA system and sound equipment for the Chorley Flower Show,19/10/2016,116365,450.00,Revenue,Paul K Sound & Vision,16607
Chorley Borough Council,http://statistics.data.gov.uk/id/local-authority/30UE,Business Support,1095,Business Development & Growth,Grants To Other Organisations,40127,Grants and Subscriptions,5031,sib grant,12/10/2016,116134,250.00,Revenue,NAME REDACTED,76306
Chorley Borough Council,http://statistics.data.gov.uk/id/local-authority/30UE,Central Support Services,1009,Customer & Digital,Other Fees,40212,Miscellaneous Expenses,5034,Umbarco Training Course Manchester 17-18 October 2016,07/10/2016,115636,"1,900.00",Revenue,Percipient Studios,75050
Chorley Borough Council,http://statistics.data.gov.uk/id/local-authority/30UE,Corporate Management,1008,Customer & Digital,Other Contributions,40145,Grants and Subscriptions,5031,ADDRESS REDACTED,21/10/2016,116444,"4,706.00",Revenue,NAME REDACTED,74797
Chorley Borough Council,http://statistics.data.gov.uk/id/local-authority/30UE,Service Management & Support,1009,Customer & Digital,Supplies-Grounds Maintenance,40025,"Equipment, Furniture & Materia",5023,Various plants,12/10/2016,116024,276.00,Revenue,Peter H Smith Limited,17088
Chorley Borough Council,http://statistics.data.gov.uk/id/local-authority/30UE,Central Support Services,1009,Early Intervention,External Contractor,40198,Miscellaneous Expenses,5034,Pest control duties for 2016/17,05/10/2016,115912,340.00,Revenue,Peter L Johnson,16727
Chorley Borough Council,http://statistics.data.gov.uk/id/local-authority/30UE,Central Support Services,1009,Early Intervention,External Contractor,40198,Miscellaneous Expenses,5034,Pest control duties for 2016/17,07/10/2016,116032,340.00,Revenue,Peter L Johnson,16727
Chorley Borough Council,http://statistics.data.gov.uk/id/local-authority/30UE,Central Support Services,1009,Early Intervention,External Contractor,40198,Miscellaneous Expenses,5034,Pest control duties for 2016/17,19/10/2016,116247,255.00,Revenue,Peter L Johnson,16727
Chorley Borough Council,http://statistics.data.gov.uk/id/local-authority/30UE,Central Support Services,1009,Early Intervention,External Contractor,40198,Miscellaneous Expenses,5034,Pest control duties for 2016/17,28/10/2016,116390,340.00,Revenue,Peter L Johnson,16727
Chorley Borough Council,http://statistics.data.gov.uk/id/local-authority/30UE,Central Support Services,1009,Early Intervention,External Contractor,40198,Miscellaneous Expenses,5034,Pest control duties for 2016/17,28/10/2016,116392,340.00,Revenue,Peter L Johnson,16727
Chorley Borough Council,http://statistics.data.gov.uk/id/local-authority/30UE,Central Support Services,1009,Early Intervention,External Contractor,40198,Miscellaneous Expenses,5034,Pest control duties for 2016/17,28/10/2016,116393,340.00,Revenue,Peter L Johnson,16727
Chorley Borough Council,http://statistics.data.gov.uk/id/local-authority/30UE,Capital,Capital,Business Development & Growth,Main Contractor,3007,Capital Expenditure,Capital,Gala Bingo Site - RIBA 01/02 - Concept Design - Person Day,12/10/2016,116109,875.00,Capital,Planit IE Limited,62532
Chorley Borough Council,http://statistics.data.gov.uk/id/local-authority/30UE,Capital,Capital,Business Development & Growth,Main Contractor,3007,Capital Expenditure,Capital,Gala Bingo Site - RIBA 03 - Developed Design - Person Day,12/10/2016,116109,"2,493.75",Capital,Planit IE Limited,62532
Chorley Borough Council,http://statistics.data.gov.uk/id/local-authority/30UE,Economic Development,1096,Business Development & Growth,Miscellaneous Expenses,40200,Miscellaneous Expenses,5034,To carry out works as per Hobbs quote number: DB-PlanitIE-25/08/2016,12/10/2016,116109,432.00,Revenue,Planit IE Limited,62532
Chorley Borough Council,http://statistics.data.gov.uk/id/local-authority/30UE,Service Management & Support,1009,Customer & Digital,Supplies-Grounds Maintenance,40025,"Equipment, Furniture & Materia",5023,500 various summer bedding plants,05/10/2016,115913,500.00,Revenue,Pole Green Nurseries,20641
Chorley Borough Council,http://statistics.data.gov.uk/id/local-authority/30UE,Tourism,1039,Customer & Digital,Supplies-Grounds Maintenance,40025,"Equipment, Furniture & Materia",5023,6No. 30metre professional hose pipe @15.99 6No. tap connector @ 1.49 1No. hose pipe splitter two-way connector adaptor,05/10/2016,115913,103.54,Revenue,Pole Green Nurseries,20641
Chorley Borough Council,http://statistics.data.gov.uk/id/local-authority/30UE,Precepts and Collection Fund,Precepts,Policy & Governance,LPA Precept,2010,Precepts & Collection Fund,Precept,pcc ctax,07/10/2016,115614,"577,515.00",Revenue,Police & Crime Commissioner,17438
Chorley Borough Council,http://statistics.data.gov.uk/id/local-authority/30UE,Economic Development,1096,Business Development & Growth,Miscellaneous Expenses,40200,Miscellaneous Expenses,5034,Signage to support Buckshaw businesses.,05/10/2016,115835,"1,395.00",Revenue,Poppy Signs Ltd,21898
Chorley Borough Council,http://statistics.data.gov.uk/id/local-authority/30UE,Unapportionable Central OHeads,1009,Business Development & Growth,General Repairs - Reactive,20004,Repairs Maintenance & Alts,5005,Union Street entrance window graphics.,07/10/2016,115917,475.00,Revenue,Poppy Signs Ltd,21898
Chorley Borough Council,http://statistics.data.gov.uk/id/local-authority/30UE,Economic Development,1096,Policy & Governance,Miscellaneous Expenses,40200,Miscellaneous Expenses,5034,8 x boards for Chorley town centre public realm consultation,05/10/2016,115944,300.16,Revenue,Poppy Signs Ltd,21898
Chorley Borough Council,http://statistics.data.gov.uk/id/local-authority/30UE,Democratic Represent and  Mgnt,1007,Policy & Governance,Miscellaneous Expenses,40200,Miscellaneous Expenses,5034,Complete; cassette and print 800mm * 2000mm visible area Twin fold out legs Soft carry case As per your artwork,19/10/2016,116228,520.00,Revenue,Poppy Signs Ltd,21898
Chorley Borough Council,http://statistics.data.gov.uk/id/local-authority/30UE,Unapportionable Central OHeads,1009,Policy & Governance,Miscellaneous Expenses,40200,Miscellaneous Expenses,5034,4 x roller banners for the Chorley Flower Show and Check Out Chorley,28/10/2016,116525,260.00,Revenue,Poppy Signs Ltd,21898
Chorley Borough Council,http://statistics.data.gov.uk/id/local-authority/30UE,Unapportionable Central OHeads,1009,Policy & Governance,Photocopier Consumables,40049,"Printing, Stationery & General",5026,Evolution Everyday A3 80gsm box 2500,05/10/2016,116026,23.08,Revenue,Premier Paper Group,54451
Chorley Borough Council,http://statistics.data.gov.uk/id/local-authority/30UE,Unapportionable Central OHeads,1009,Policy & Governance,Photocopier Consumables,40049,"Printing, Stationery & General",5026,"Evolution Everyday A4 80gsm, Box 2500",05/10/2016,116026,454.00,Revenue,Premier Paper Group,54451
Chorley Borough Council,http://statistics.data.gov.uk/id/local-authority/30UE,Unapportionable Central OHeads,1009,Policy & Governance,Refreshments,40036,Catering,5024,Sanitisation of water cooler machines and supply of cups and bottled water for the Month of October 2016,19/10/2016,116290,420.00,Revenue,Pressure Coolers Ltd T/A Maestro International Ltd,19767
Chorley Borough Council,http://statistics.data.gov.uk/id/local-authority/30UE,Private Sector HSG Renewal,1073,Early Intervention,External Contractor,40198,Miscellaneous Expenses,5034,Provision of Handyperson service (funded by Integrated Home Improvement Service) for Q3 2016/17 period 1/10/16 to 31/12/16,05/10/2016,115960,"7,225.00",Revenue,Preston Care and Repair,50018
Chorley Borough Council,http://statistics.data.gov.uk/id/local-authority/30UE,Service Management & Support,1009,Customer & Digital,External Contractor,40198,Miscellaneous Expenses,5034,Carryout painting works at 4 site including 12 x benches 2 x sets of goal posts and gold lettering at Fairclough Memorial garden,19/10/2016,116243,980.00,Revenue,Price Painters & Decorators,75750
Chorley Borough Council,http://statistics.data.gov.uk/id/local-authority/30UE,Elections,1012,Policy & Governance,Postages,40082,Communication and Computing,5028,HEF final reminder postage,12/10/2016,116114,727.67,Revenue,Print Image Facilities LLP,57870
Chorley Borough Council,http://statistics.data.gov.uk/id/local-authority/30UE,Elections,1012,Policy & Governance,Printing,40043,"Printing, Stationery & General",5026,1st reminder run HEF`s (23912),05/10/2016,116011,"3,134.17",Revenue,Print Image Network,21171
Chorley Borough Council,http://statistics.data.gov.uk/id/local-authority/30UE,Elections,1012,Policy & Governance,Printing,40043,"Printing, Stationery & General",5026,Calling Cards for Annual Canvass 2016,14/10/2016,116196,717.00,Revenue,Print Image Network,21171
Chorley Borough Council,http://statistics.data.gov.uk/id/local-authority/30UE,Elections,1012,Policy & Governance,Printing,40043,"Printing, Stationery & General",5026,2nd reminder HEF reminders 2016,28/10/2016,116564,"1,984.63",Revenue,Print Image Network,21171
Chorley Borough Council,http://statistics.data.gov.uk/id/local-authority/30UE,Elections,1012,Policy & Governance,Printing,40043,"Printing, Stationery & General",5026,Initial run of ITR`s - 3601,28/10/2016,116565,"2,108.23",Revenue,Print Image Network,21171
Chorley Borough Council,http://statistics.data.gov.uk/id/local-authority/30UE,Unapportionable Central OHeads,1009,Policy & Governance,Exhibitions & Special Events,40158,Miscellaneous Expenses,5034,Security for Chorley Live event 2016,28/10/2016,116568,940.00,Revenue,Protege Security Ltd,62271
Chorley Borough Council,http://statistics.data.gov.uk/id/local-authority/30UE,Service Management & Support,1009,Customer & Digital,Supplies-Grounds Maintenance,40025,"Equipment, Furniture & Materia",5023,370m2 of turf @ 2 a roll - To be delivered to ADDRESS REDACTED on Monday 5th September,05/10/2016,115904,610.50,Revenue,R H F Turf,17990
Chorley Borough Council,http://statistics.data.gov.uk/id/local-authority/30UE,Control Accounts,Control,Policy & Governance,General Balances,100,Balance Sheet,Balance,childcare vouchers,07/10/2016,115589,"5,175.93",Revenue,Reward Gateway (UK) Ltd,66814
Chorley Borough Council,http://statistics.data.gov.uk/id/local-authority/30UE,Control Accounts,Control,Policy & Governance,General Balances,100,Balance Sheet,Balance,childcare vouchers,25/10/2016,116001,"5,242.00",Revenue,Reward Gateway (UK) Ltd,66814
Chorley Borough Council,http://statistics.data.gov.uk/id/local-authority/30UE,Non Domestic Rates Redistribut,,Policy & Governance,Tariff to Business Rates Pool,49002,Expenditure not in NCOS,,bus rates pool,07/10/2016,115611,"628,533.00",Revenue,Ribble Valley Borough Council,21100
Chorley Borough Council,http://statistics.data.gov.uk/id/local-authority/30UE,Service Management & Support,1009,Customer & Digital,Supplies-Grounds Maintenance,40025,"Equipment, Furniture & Materia",5023,Trustee amenity weedkiller- Glyphosate,26/10/2016,116299,"1,060.00",Revenue,Rigby Taylor Ltd,16299
Chorley Borough Council,http://statistics.data.gov.uk/id/local-authority/30UE,Corporate Management,1008,Customer & Digital,Publicity - Advertising,40157,Miscellaneous Expenses,5034,credited,28/07/2016,115154,"3,290.00",Revenue,Roadvert Ltd,76160
Chorley Borough Council,http://statistics.data.gov.uk/id/local-authority/30UE,Corporate Management,1008,Customer & Digital,Publicity - Advertising,40157,Miscellaneous Expenses,5034,Supply and installation of Spedian banners to the following waste collection vehicles; DE63 ZYL VX09 WFN VX09 WFP VX09,14/10/2016,116171,"2,820.00",Revenue,Roadvert Ltd,76160
Chorley Borough Council,http://statistics.data.gov.uk/id/local-authority/30UE,Corporate Management,1008,Customer & Digital,Other Contributions,40145,Grants and Subscriptions,5031,ADDRESS REDACTED,26/10/2016,116517,"2,551.20",Revenue,NAME REDACTED,74773
Chorley Borough Council,http://statistics.data.gov.uk/id/local-authority/30UE,Elections,1012,Policy & Governance,Postages,40082,Communication and Computing,5028,Business reply April 2016 - Setpember 2016 - RRHA-KZCB-CAXA,05/10/2016,115926,"1,533.97",Revenue,Royal Mail Group Plc,17522
Chorley Borough Council,http://statistics.data.gov.uk/id/local-authority/30UE,Unapportionable Central OHeads,1009,Customer & Digital,Postages,40082,Communication and Computing,5028,annual charges,05/10/2016,116002,"2,400.00",Revenue,Royal Mail Group Plc,17522
Chorley Borough Council,http://statistics.data.gov.uk/id/local-authority/30UE,Service Management & Support,1009,Customer & Digital,Vehicle Maintenance,30045,Direct Transport Costs,5016,Carryout valet and destickering of 2 x Nissan Leaf vehicles as requested before return to hire company as requested,28/10/2016,116532,200.00,Revenue,Sam Bird Motorbodies,20116
Chorley Borough Council,http://statistics.data.gov.uk/id/local-authority/30UE,Service Management & Support,1009,Customer & Digital,Vehicle Maintenance,30045,Direct Transport Costs,5016,Supply and fit new rear light to Nissan leaf before return to hire company PL13 CNJ as requested,28/10/2016,116532,200.16,Revenue,Sam Bird Motorbodies,20116
Chorley Borough Council,http://statistics.data.gov.uk/id/local-authority/30UE,Service Management & Support,1009,Customer & Digital,Vehicle Maintenance,30045,Direct Transport Costs,5016,Supply number plate DK57KVT for cemetery van as requested,28/10/2016,116532,10.00,Revenue,Sam Bird Motorbodies,20116
Chorley Borough Council,http://statistics.data.gov.uk/id/local-authority/30UE,Service Management & Support,1009,Customer & Digital,Vehicle Maintenance,30045,Direct Transport Costs,5016,Carryout aluminium welding repair and fit bracket to ladder rack on DX55CVG as required,28/10/2016,116532,75.00,Revenue,Sam Bird Motorbodies,20116
Chorley Borough Council,http://statistics.data.gov.uk/id/local-authority/30UE,Service Management & Support,1009,Customer & Digital,Diesel/Derv,30007,Direct Transport Costs,5016,Supply 4000 litres of gas oil delivered to Bengal St depot as per your quote via the chest AM delivery 20/10/2016,26/10/2016,116511,"1,920.00",Revenue,Samuel Cooke & Co Ltd,17173
Chorley Borough Council,http://statistics.data.gov.uk/id/local-authority/30UE,Service Management & Support,1009,Customer & Digital,Diesel/Derv,30007,Direct Transport Costs,5016,Supply 6000litres of road diesel delivered to Bengal St depot as per your quote via the chest AM delivery 20/10/2016,26/10/2016,116512,"5,760.00",Revenue,Samuel Cooke & Co Ltd,17173
Chorley Borough Council,http://statistics.data.gov.uk/id/local-authority/30UE,Central Support Services,1009,Early Intervention,Rent/Hire Of Premises,20017,Premises Rents,5007,Hire of Parklands High School sports facilities in August,05/10/2016,115943,500.00,Revenue,School Lettings Solutions Ltd,59991
Chorley Borough Council,http://statistics.data.gov.uk/id/local-authority/30UE,Democratic Represent and  Mgnt,1007,Business Development & Growth,Electricity,20013,Energy Costs,5006,ADDRESS REDACTED,05/10/2016,115860,560.06,Revenue,Scottish Power,19010
Chorley Borough Council,http://statistics.data.gov.uk/id/local-authority/30UE,Business Support,1095,Business Development & Growth,Electricity,20013,Energy Costs,5006,ADDRESS REDACTED,28/10/2016,116614,338.82,Revenue,Scottish Power,19010
Chorley Borough Council,http://statistics.data.gov.uk/id/local-authority/30UE,Business Support,1095,Business Development & Growth,Electricity,20013,Energy Costs,5006,ADDRESS REDACTED,28/10/2016,116615,"4,671.89",Revenue,Scottish Power,19010
Chorley Borough Council,http://statistics.data.gov.uk/id/local-authority/30UE,Business Support,1095,Business Development & Growth,Electricity,20013,Energy Costs,5006,ADDRESS REDACTED,28/10/2016,116616,960.47,Revenue,Scottish Power,19010
Chorley Borough Council,http://statistics.data.gov.uk/id/local-authority/30UE,Business Support,1095,Business Development & Growth,Electricity,20013,Energy Costs,5006,ADDRESS REDACTED,28/10/2016,116617,765.59,Revenue,Scottish Power,19010
Chorley Borough Council,http://statistics.data.gov.uk/id/local-authority/30UE,Business Support,1095,Business Development & Growth,Electricity,20013,Energy Costs,5006,ADDRESS REDACTED,28/10/2016,116618,792.81,Revenue,Scottish Power,19010
Chorley Borough Council,http://statistics.data.gov.uk/id/local-authority/30UE,Business Support,1095,Business Development & Growth,Electricity,20013,Energy Costs,5006,ADDRESS REDACTED,28/10/2016,116619,"1,118.74",Revenue,Scottish Power,19010
Chorley Borough Council,http://statistics.data.gov.uk/id/local-authority/30UE,Democratic Represent and  Mgnt,1007,Business Development & Growth,Electricity,20013,Energy Costs,5006,ADDRESS REDACTED,28/10/2016,116621,560.06,Revenue,Scottish Power,19010
Chorley Borough Council,http://statistics.data.gov.uk/id/local-authority/30UE,Control Accounts,Control,Policy & Governance,Manual Control Account,1,Balance Sheet,Balance,refund,21/10/2016,CRREF53,531.18,Revenue,Scottish Power,19010
Chorley Borough Council,http://statistics.data.gov.uk/id/local-authority/30UE,Homelessness,1075,Early Intervention,External Contractor,40198,Miscellaneous Expenses,5034,For Concierge Service at ADDRESS REDACTED. This is for the period April 2016 to,12/10/2016,115873,"2,267.20",Revenue,Sector Security Services,19269
Chorley Borough Council,http://statistics.data.gov.uk/id/local-authority/30UE,Homelessness,1075,Early Intervention,External Contractor,40198,Miscellaneous Expenses,5034,For Concierge Service at ADDRESS REDACTED. This is for the period April 2016 to,21/10/2016,116403,"2,314.00",Revenue,Sector Security Services,19269
Chorley Borough Council,http://statistics.data.gov.uk/id/local-authority/30UE,Business Support,1095,Business Development & Growth,Security Service,40062,Services,5027,To provide Security Services to Market Walk Shopping Centre April 2016 to March 2017,28/10/2016,116490,"5,728.69",Revenue,Securitas Security Services (UK) Ltd,70693
Chorley Borough Council,http://statistics.data.gov.uk/id/local-authority/30UE,Central Support Services,1009,Early Intervention,Training Course Fees,17010,Indirect Employee Expenses,5002,Safeguarding and CSE awareness training for the taxi trade 4 sessions per day on the following 4 dates: Monday 26/9/16,19/10/2016,116363,654.00,Revenue,Sigma Consultancy Services (Lytham) Ltd,76201
Chorley Borough Council,http://statistics.data.gov.uk/id/local-authority/30UE,Central Support Services,1009,Early Intervention,Training Course Fees,17010,Indirect Employee Expenses,5002,Safeguarding and CSE awareness training for the taxi trade 4 sessions per day on the following 4 dates: Monday 26/9/16 ,19/10/2016,116366,654.00,Revenue,Sigma Consultancy Services (Lytham) Ltd,76201
Chorley Borough Council,http://statistics.data.gov.uk/id/local-authority/30UE,Unapportionable Central OHeads,1009,Policy & Governance,Publicity - Advertising,40157,Miscellaneous Expenses,5034,Hire of Boom Bikes to advertise Chorley Live event 2016,26/10/2016,116472,650.00,Revenue,Sound Intervention Ltd,65504
Chorley Borough Council,http://statistics.data.gov.uk/id/local-authority/30UE,Unapportionable Central OHeads,1009,Policy & Governance,Service Fees to other Local Authorities,40076,Services,5027,Provision of Shared Assurance Services in 2016/17,07/10/2016,116098,"43,000.00",Revenue,South Ribble Borough Council,17889
Chorley Borough Council,http://statistics.data.gov.uk/id/local-authority/30UE,Central Support Services,1009,Early Intervention,Exhibitions & Special Events,40158,Miscellaneous Expenses,5034,"Supply of crew, kit and technical services for Chorley Sports Awards on Friday 9th September",12/10/2016,116112,900.00,Revenue,Stanley Road Film and Media Limited,68299
Chorley Borough Council,http://statistics.data.gov.uk/id/local-authority/30UE,Central Support Services,1009,Customer & Digital,Computer Equipment-Maintenance,40105,Communication and Computing,5028,"�	Addition of 1 x UCS 5108 blade server chassis c/w 6 UCS B200 M3 blade servers onto contract 22408. ",19/10/2016,116200,909.86,Revenue,Starcom Technologies Limited,20541
Chorley Borough Council,http://statistics.data.gov.uk/id/local-authority/30UE,Capital,Capital,Customer & Digital,Equipment,3014,Capital Expenditure,Capital,26 x galvanised 1100ltr steely bins to Chorley spec @ 198.58 per unit. Deliver to ADDRESS REDACTED,05/10/2016,115914,"5,163.08",Capital,Straight Plc,17633
Chorley Borough Council,http://statistics.data.gov.uk/id/local-authority/30UE,Unapportionable Central OHeads,1009,Business Development & Growth,General Repairs - Reactive,20004,Repairs Maintenance & Alts,5005,Blanket order for Reactive works from October 2016.,14/10/2016,115945,780.00,Revenue,Stringfellow Bldg Cntrctrs Ltd,17893
Chorley Borough Council,http://statistics.data.gov.uk/id/local-authority/30UE,Unapportionable Central OHeads,1009,Business Development & Growth,General Repairs - Reactive,20004,Repairs Maintenance & Alts,5005,Blanket order for Reactive works from October 2016.,21/10/2016,115976,"3,090.00",Revenue,Stringfellow Bldg Cntrctrs Ltd,17893
Chorley Borough Council,http://statistics.data.gov.uk/id/local-authority/30UE,Unapportionable Central OHeads,1009,Business Development & Growth,General Repairs - Reactive,20004,Repairs Maintenance & Alts,5005,Blanket order for Reactive works from October 2016.,07/10/2016,115977,"1,150.00",Revenue,Stringfellow Bldg Cntrctrs Ltd,17893
Chorley Borough Council,http://statistics.data.gov.uk/id/local-authority/30UE,Capital,Capital,Business Development & Growth,Main Contractor,3007,Capital Expenditure,Capital,Improvement works at ADDRESS REDACTED for new tenant,28/10/2016,116375,"12,175.00",Capital,Stringfellow Bldg Cntrctrs Ltd,17893
Chorley Borough Council,http://statistics.data.gov.uk/id/local-authority/30UE,Central Support Services,1009,Early Intervention,Community Develop Initiatives,40185,Miscellaneous Expenses,5034,Tuesday 4th October Buffet Lunch x 60 with Standard dessert x 35,07/10/2016,115957,303.25,Revenue,Style Catering,66901
Chorley Borough Council,http://statistics.data.gov.uk/id/local-authority/30UE,Homelessness,1075,Early Intervention,Tools & Equipment - Purchase,40003,"Equipment, Furniture & Materia",5023,Sirius Mini Jumbo Toilet Rolls 200m x 90mm (Pack of 12),12/10/2016,116058,43.05,Revenue,Swiftkleen Ltd,17933
Chorley Borough Council,http://statistics.data.gov.uk/id/local-authority/30UE,Homelessness,1075,Early Intervention,Tools & Equipment - Purchase,40003,"Equipment, Furniture & Materia",5023,Black Refuse Sacks 180g (Heavy Duty) pack of 200,12/10/2016,116058,23.40,Revenue,Swiftkleen Ltd,17933
Chorley Borough Council,http://statistics.data.gov.uk/id/local-authority/30UE,Homelessness,1075,Early Intervention,Tools & Equipment - Purchase,40003,"Equipment, Furniture & Materia",5023,"Evans Vanodine Everfresh, Perfumed thickened toilet cleaner - 5 litre",12/10/2016,116058,6.76,Revenue,Swiftkleen Ltd,17933
Chorley Borough Council,http://statistics.data.gov.uk/id/local-authority/30UE,Homelessness,1075,Early Intervention,Tools & Equipment - Purchase,40003,"Equipment, Furniture & Materia",5023,Exel PY Colour Coded Mop Head,12/10/2016,116058,11.76,Revenue,Swiftkleen Ltd,17933
Chorley Borough Council,http://statistics.data.gov.uk/id/local-authority/30UE,Homelessness,1075,Early Intervention,Tools & Equipment - Purchase,40003,"Equipment, Furniture & Materia",5023,Non-Biological Washing Powder 10kg - 100 washes,12/10/2016,116058,8.30,Revenue,Swiftkleen Ltd,17933
Chorley Borough Council,http://statistics.data.gov.uk/id/local-authority/30UE,Homelessness,1075,Early Intervention,Tools & Equipment - Purchase,40003,"Equipment, Furniture & Materia",5023,Stand-up Long Life Gel Air Freshener (any fragrance) - Case of 12,12/10/2016,116058,3.36,Revenue,Swiftkleen Ltd,17933
Chorley Borough Council,http://statistics.data.gov.uk/id/local-authority/30UE,Homelessness,1075,Early Intervention,Tools & Equipment - Purchase,40003,"Equipment, Furniture & Materia",5023,Evans Vanodine Aerosol Air Freshener 400ml - Apple Fragrance,12/10/2016,116058,8.40,Revenue,Swiftkleen Ltd,17933
Chorley Borough Council,http://statistics.data.gov.uk/id/local-authority/30UE,Homelessness,1075,Early Intervention,Tools & Equipment - Purchase,40003,"Equipment, Furniture & Materia",5023,Glade Vacuum Fresh fragrance sachets - pack of 3,12/10/2016,116058,2.14,Revenue,Swiftkleen Ltd,17933
Chorley Borough Council,http://statistics.data.gov.uk/id/local-authority/30UE,Homelessness,1075,Early Intervention,Tools & Equipment - Purchase,40003,"Equipment, Furniture & Materia",5023,"Evans Vanodine Handsan, Alcohol Gel Hand Rub 500ml",12/10/2016,116058,10.00,Revenue,Swiftkleen Ltd,17933
Chorley Borough Council,http://statistics.data.gov.uk/id/local-authority/30UE,Homelessness,1075,Early Intervention,Tools & Equipment - Purchase,40003,"Equipment, Furniture & Materia",5023,Colour Coded Mop Bucket - Red,12/10/2016,116058,13.75,Revenue,Swiftkleen Ltd,17933
Chorley Borough Council,http://statistics.data.gov.uk/id/local-authority/30UE,Homelessness,1075,Early Intervention,Tools & Equipment - Purchase,40003,"Equipment, Furniture & Materia",5023,"HPC Nitrile Disposable Glove, Powder Free, Box of 100 - Small",12/10/2016,116058,5.90,Revenue,Swiftkleen Ltd,17933
Chorley Borough Council,http://statistics.data.gov.uk/id/local-authority/30UE,Homelessness,1075,Early Intervention,Tools & Equipment - Purchase,40003,"Equipment, Furniture & Materia",5023,Heavy Duty Green Scourers - pack of 10,12/10/2016,116058,4.24,Revenue,Swiftkleen Ltd,17933
Chorley Borough Council,http://statistics.data.gov.uk/id/local-authority/30UE,Homelessness,1075,Early Intervention,Tools & Equipment - Purchase,40003,"Equipment, Furniture & Materia",5023,"Swing Bin Liners, White - 200 per roll",12/10/2016,116058,0.80,Revenue,Swiftkleen Ltd,17933
Chorley Borough Council,http://statistics.data.gov.uk/id/local-authority/30UE,Homelessness,1075,Early Intervention,Tools & Equipment - Purchase,40003,"Equipment, Furniture & Materia",5023,Numatic Heppaflow Vac Bag for Henry Vacuum,12/10/2016,116058,4.18,Revenue,Swiftkleen Ltd,17933
Chorley Borough Council,http://statistics.data.gov.uk/id/local-authority/30UE,Homelessness,1075,Early Intervention,Tools & Equipment - Purchase,40003,"Equipment, Furniture & Materia",5023,Pillows Pack of 2 Medium,12/10/2016,116058,3.83,Revenue,Swiftkleen Ltd,17933
Chorley Borough Council,http://statistics.data.gov.uk/id/local-authority/30UE,Homelessness,1075,Early Intervention,Tools & Equipment - Purchase,40003,"Equipment, Furniture & Materia",5023,Quilts Single Bed 10.5 Tog,12/10/2016,116058,50.75,Revenue,Swiftkleen Ltd,17933
Chorley Borough Council,http://statistics.data.gov.uk/id/local-authority/30UE,Homelessness,1075,Early Intervention,Tools & Equipment - Purchase,40003,"Equipment, Furniture & Materia",5023,Basic Metal Pans - Box of 3,12/10/2016,116058,59.84,Revenue,Swiftkleen Ltd,17933
Chorley Borough Council,http://statistics.data.gov.uk/id/local-authority/30UE,Homelessness,1075,Early Intervention,Tools & Equipment - Purchase,40003,"Equipment, Furniture & Materia",5023,Dinner Plate,12/10/2016,116058,6.00,Revenue,Swiftkleen Ltd,17933
Chorley Borough Council,http://statistics.data.gov.uk/id/local-authority/30UE,Homelessness,1075,Early Intervention,Tools & Equipment - Purchase,40003,"Equipment, Furniture & Materia",5023,Coffee/Tea Mug,12/10/2016,116058,6.00,Revenue,Swiftkleen Ltd,17933
Chorley Borough Council,http://statistics.data.gov.uk/id/local-authority/30UE,Homelessness,1075,Early Intervention,Tools & Equipment - Purchase,40003,"Equipment, Furniture & Materia",5023,Stainless Steel Forks - pack of 12,12/10/2016,116058,2.70,Revenue,Swiftkleen Ltd,17933
Chorley Borough Council,http://statistics.data.gov.uk/id/local-authority/30UE,Homelessness,1075,Early Intervention,Tools & Equipment - Purchase,40003,"Equipment, Furniture & Materia",5023,Stainless Steel Knives - pack of 12,12/10/2016,116058,3.98,Revenue,Swiftkleen Ltd,17933
Chorley Borough Council,http://statistics.data.gov.uk/id/local-authority/30UE,Homelessness,1075,Early Intervention,Tools & Equipment - Purchase,40003,"Equipment, Furniture & Materia",5023,Stainless Steel Dessert Spoon - pack of 12,12/10/2016,116058,2.10,Revenue,Swiftkleen Ltd,17933
Chorley Borough Council,http://statistics.data.gov.uk/id/local-authority/30UE,Homelessness,1075,Early Intervention,Tools & Equipment - Purchase,40003,"Equipment, Furniture & Materia",5023,Large Plastic Cutlery Tray,12/10/2016,116058,24.48,Revenue,Swiftkleen Ltd,17933
Chorley Borough Council,http://statistics.data.gov.uk/id/local-authority/30UE,Homelessness,1075,Early Intervention,Tools & Equipment - Purchase,40003,"Equipment, Furniture & Materia",5023,Stainless Steel Tea Spoons - pack of 12,12/10/2016,116058,1.50,Revenue,Swiftkleen Ltd,17933
Chorley Borough Council,http://statistics.data.gov.uk/id/local-authority/30UE,Homelessness,1075,Early Intervention,Tools & Equipment - Purchase,40003,"Equipment, Furniture & Materia",5023,Chef`s Utility Kitchen Knife,12/10/2016,116058,8.75,Revenue,Swiftkleen Ltd,17933
Chorley Borough Council,http://statistics.data.gov.uk/id/local-authority/30UE,Homelessness,1075,Early Intervention,Tools & Equipment - Purchase,40003,"Equipment, Furniture & Materia",5023,"Evans Vanodine Trigon, Hand Soap, Un-perfumed 5ltr",12/10/2016,116058,11.04,Revenue,Swiftkleen Ltd,17933
Chorley Borough Council,http://statistics.data.gov.uk/id/local-authority/30UE,Homelessness,1075,Early Intervention,Tools & Equipment - Purchase,40003,"Equipment, Furniture & Materia",5023,28cm Frying Pan,12/10/2016,116058,28.72,Revenue,Swiftkleen Ltd,17933
Chorley Borough Council,http://statistics.data.gov.uk/id/local-authority/30UE,Homelessness,1075,Early Intervention,Tools & Equipment - Purchase,40003,"Equipment, Furniture & Materia",5023,Croydex Basics Rubber Bath/Shower Mat,12/10/2016,116058,17.00,Revenue,Swiftkleen Ltd,17933
Chorley Borough Council,http://statistics.data.gov.uk/id/local-authority/30UE,Economic Development,1096,Business Development & Growth,Cleaning Materials,40019,"Equipment, Furniture & Materia",5023,covered market toilets cleaning provisions.,19/10/2016,116201,449.06,Revenue,Swiftkleen Ltd,17933
Chorley Borough Council,http://statistics.data.gov.uk/id/local-authority/30UE,Democratic Represent and  Mgnt,1007,Business Development & Growth,Grounds Maintenance Contractor,20043,Grounds Maintenance Costs,5013,"Cutting and bailing of the meadow on Blainscough Wood Nature Reserve, bales to be removed from site.  Cutting of the boundary",26/10/2016,116463,750.00,Revenue,T & L Kirkham,17058
Chorley Borough Council,http://statistics.data.gov.uk/id/local-authority/30UE,Central Support Services,1009,Policy & Governance,Car Leasing Payment,14100,Direct Employee Expenses,5001,NAME REDACTED,21/10/2016,108440,533.54,Revenue,TCH Leasing,64083
Chorley Borough Council,http://statistics.data.gov.uk/id/local-authority/30UE,Unapportionable Central OHeads,1009,Policy & Governance,Car Leasing Payment,14100,Direct Employee Expenses,5001,NAME REDACTED,21/10/2016,116220,"2,308.72",Revenue,TCH Leasing,64083
Chorley Borough Council,http://statistics.data.gov.uk/id/local-authority/30UE,Planning Policy,1092,Policy & Governance,Car Leasing Payment,14100,Direct Employee Expenses,5001,NAME REDACTED,21/10/2016,116220,"2,263.83",Revenue,TCH Leasing,64083
Chorley Borough Council,http://statistics.data.gov.uk/id/local-authority/30UE,Unapportionable Central OHeads,1009,Policy & Governance,Car Leasing Payment,14100,Direct Employee Expenses,5001,VAT,21/10/2016,116220,173.77,Revenue,TCH Leasing,64083
Chorley Borough Council,http://statistics.data.gov.uk/id/local-authority/30UE,Planning Policy,1092,Policy & Governance,Car Leasing Payment,14100,Direct Employee Expenses,5001,VAT,21/10/2016,116220,199.19,Revenue,TCH Leasing,64083
Chorley Borough Council,http://statistics.data.gov.uk/id/local-authority/30UE,Control Accounts,Control,Policy & Governance,Manual Control Account,1,Balance Sheet,Balance,VAT,21/10/2016,116220,-372.96,Revenue,TCH Leasing,64083
Chorley Borough Council,http://statistics.data.gov.uk/id/local-authority/30UE,Capital,Capital,Early Intervention,Main Contractor,3007,Capital Expenditure,Capital,Capital Works - all upgrade of equipment and control room,07/10/2016,115958,"34,730.72",Capital,Technology Solutions,72376
Chorley Borough Council,http://statistics.data.gov.uk/id/local-authority/30UE,Unapportionable Central OHeads,1009,Policy & Governance,Exhibitions & Special Events,40158,Miscellaneous Expenses,5034,Hire of PA systems and delivery of the Chorley Live event 2016,26/10/2016,116478,"3,500.00",Revenue,The Creative Network,61874
Chorley Borough Council,http://statistics.data.gov.uk/id/local-authority/30UE,Unapportionable Central OHeads,1009,Policy & Governance,Exhibitions & Special Events,40158,Miscellaneous Expenses,5034,6000 x tri-colour glow bracelets for Astley Bonfire 2016,26/10/2016,116474,259.59,Revenue,The Glowhouse Ltd,76326
Chorley Borough Council,http://statistics.data.gov.uk/id/local-authority/30UE,Service Management & Support,1009,Customer & Digital,Supplies-Grounds Maintenance,40025,"Equipment, Furniture & Materia",5023,supply a box of 30 x LP1133 discussed with NAME REDACTED. Items are required as soon as possible and NAME REDACTED ,05/10/2016,115925,268.50,Revenue,The Helping Hand Company,22201
Chorley Borough Council,http://statistics.data.gov.uk/id/local-authority/30UE,Unapportionable Central OHeads,1009,Policy & Governance,Practising Certificates,40202,Miscellaneous Expenses,5034,"PC Compensation Fund 2016/2017NAMES REDACTED",28/10/2016,116584,"1,167.00",Revenue,The Law Society,57091
Chorley Borough Council,http://statistics.data.gov.uk/id/local-authority/30UE,Central Support Services,1009,Early Intervention,Exhibitions & Special Events,40158,Miscellaneous Expenses,5034,Supply of trophies and engraving for Chorley Sports Awards,12/10/2016,116162,289.45,Revenue,The Original Watch Stall,76261
Chorley Borough Council,http://statistics.data.gov.uk/id/local-authority/30UE,Unapportionable Central OHeads,1009,Policy & Governance,Exhibitions & Special Events,40158,Miscellaneous Expenses,5034,Posters for the Chorley Live event,12/10/2016,115919,257.95,Revenue,The Print Quarter,17987
Chorley Borough Council,http://statistics.data.gov.uk/id/local-authority/30UE,Unapportionable Central OHeads,1009,Policy & Governance,Miscellaneous Expenses,40200,Miscellaneous Expenses,5034,Advert in The Room Book to promote Checkout Chorley to increase visitor numbers,19/10/2016,116294,850.00,Revenue,The Roombook Ltd,67970
Chorley Borough Council,http://statistics.data.gov.uk/id/local-authority/30UE,Capital,Capital,Business Development & Growth,Surveyors Fees,3021,Capital Expenditure,Capital,Buckshaw CC budget costs.  Replaces cancelled order PRD042195.,28/10/2016,116476,750.00,Capital,Tom Lucas Partnership,67598
Chorley Borough Council,http://statistics.data.gov.uk/id/local-authority/30UE,Economic Development,1096,Business Development & Growth,Christmas Lights,40179,Miscellaneous Expenses,5034,"170 illuminated trees in existing brackets, includes discount for single invoice early payment.",21/10/2016,116407,"11,602.50",Revenue,Town Centre Trees,57436
Chorley Borough Council,http://statistics.data.gov.uk/id/local-authority/30UE,Service Management & Support,1009,Customer & Digital,Grounds Maintenance Contractor,20043,Grounds Maintenance Costs,5013,Prune trees back off footpath @ Stansted Road Prune trees back off footpath @ Woodford Copse,12/10/2016,116087,"1,860.00",Revenue,Treescape North West Ltd,17688
Chorley Borough Council,http://statistics.data.gov.uk/id/local-authority/30UE,Service Management & Support,1009,Customer & Digital,Petrol,30005,Direct Transport Costs,5016,Sep-16,25/10/2016,115895,515.51,Revenue,Uk Fuels Ltd,57996
Chorley Borough Council,http://statistics.data.gov.uk/id/local-authority/30UE,Unapportionable Central OHeads,1009,Policy & Governance,Miscellaneous Expenses,40200,Miscellaneous Expenses,5034,levels 1-5,05/10/2016,116004,"1,451.40",Revenue,UK Healthcare (BDHSC),17241
Chorley Borough Council,http://statistics.data.gov.uk/id/local-authority/30UE,Control Accounts,Control,Policy & Governance,General Balances,100,Balance Sheet,Balance,top ups,05/10/2016,116004,621.11,Revenue,UK Healthcare (BDHSC),17241
Chorley Borough Council,http://statistics.data.gov.uk/id/local-authority/30UE,Unapportionable Central OHeads,1009,Policy & Governance,Miscellaneous Expenses,40200,Miscellaneous Expenses,5034,levels 1-5,12/10/2016,116136,"1,437.56",Revenue,UK Healthcare (BDHSC),17241
Chorley Borough Council,http://statistics.data.gov.uk/id/local-authority/30UE,Control Accounts,Control,Policy & Governance,General Balances,100,Balance Sheet,Balance,top ups,12/10/2016,116136,648.60,Revenue,UK Healthcare (BDHSC),17241
Chorley Borough Council,http://statistics.data.gov.uk/id/local-authority/30UE,Unapportionable Central OHeads,1009,Customer & Digital,Postages,40082,Communication and Computing,5028,Imail Eco Business mono Letters - Hybrid,14/10/2016,116071,734.98,Revenue,UKMAIL Ltd (Mail),57758
Chorley Borough Council,http://statistics.data.gov.uk/id/local-authority/30UE,Unapportionable Central OHeads,1009,Customer & Digital,Postages,40082,Communication and Computing,5028,Imail Eco Business mono Letters - Hybrid,14/10/2016,116078,"1,203.95",Revenue,UKMAIL Ltd (Mail),57758
Chorley Borough Council,http://statistics.data.gov.uk/id/local-authority/30UE,Unapportionable Central OHeads,1009,Customer & Digital,Postages,40082,Communication and Computing,5028,Imail Eco Business mono Letters - Hybrid,28/10/2016,116566,597.59,Revenue,UKMAIL Ltd (Mail),57758
Chorley Borough Council,http://statistics.data.gov.uk/id/local-authority/30UE,Unapportionable Central OHeads,1009,Customer & Digital,Postages,40082,Communication and Computing,5028,Imail Eco Business mono Letters - Hybrid,28/10/2016,116586,482.43,Revenue,UKMAIL Ltd (Mail),57758
Chorley Borough Council,http://statistics.data.gov.uk/id/local-authority/30UE,Unapportionable Central OHeads,1009,Customer & Digital,Postages,40082,Communication and Computing,5028,Imail Eco Business mono Letters - Hybrid,28/10/2016,116587,789.05,Revenue,UKMAIL Ltd (Mail),57758
Chorley Borough Council,http://statistics.data.gov.uk/id/local-authority/30UE,Control Accounts,Control,Policy & Governance,General Balances,100,Balance Sheet,Balance,oct deduction,12/10/2016,116194,"1,607.40",Revenue,Unify Credit Union Ltd,55509
Chorley Borough Council,http://statistics.data.gov.uk/id/local-authority/30UE,Homelessness,1075,Business Development & Growth,Water - Metered Supplies,20022,Water Services,5009,cotsdwold house,07/10/2016,115994,943.43,Revenue,United Utilities Water Plc,17926
Chorley Borough Council,http://statistics.data.gov.uk/id/local-authority/30UE,Unapportionable Central OHeads,1009,Business Development & Growth,Water - Metered Supplies,20022,Water Services,5009,stump lane,07/10/2016,115997,"1,837.32",Revenue,United Utilities Water Plc,17926
Chorley Borough Council,http://statistics.data.gov.uk/id/local-authority/30UE,Democratic Represent and  Mgnt,1007,Business Development & Growth,Water - Metered Supplies,20022,Water Services,5009,astley coach house,07/10/2016,115998,741.23,Revenue,United Utilities Water Plc,17926
Chorley Borough Council,http://statistics.data.gov.uk/id/local-authority/30UE,Democratic Represent and  Mgnt,1007,Business Development & Growth,Water - Metered Supplies,20022,Water Services,5009,Astkey hall,19/10/2016,116251,608.60,Revenue,United Utilities Water Plc,17926
Chorley Borough Council,http://statistics.data.gov.uk/id/local-authority/30UE,Economic Development,1096,Business Development & Growth,Water - Metered Supplies,20022,Water Services,5009,Market stall 1,21/10/2016,116431,496.90,Revenue,United Utilities Water Plc,17926
Chorley Borough Council,http://statistics.data.gov.uk/id/local-authority/30UE,Democratic Represent and  Mgnt,1007,Business Development & Growth,Water - Metered Supplies,20022,Water Services,5009,Asltey village,21/10/2016,116432,682.46,Revenue,United Utilities Water Plc,17926
Chorley Borough Council,http://statistics.data.gov.uk/id/local-authority/30UE,Unapportionable Central OHeads,1009,Policy & Governance,Training Course Fees,17010,Indirect Employee Expenses,5002,LPC Tuition Fees for 2016/17,26/10/2016,116475,"4,500.00",Revenue,University of Central Lancashire (UCLAN),22472
Chorley Borough Council,http://statistics.data.gov.uk/id/local-authority/30UE,Development Control,1091,Customer & Digital,Professional Fees,40063,Services,5027,app support,19/10/2016,115227,"3,250.00",Revenue,Urban Vision Partnership Ltd,21181
Chorley Borough Council,http://statistics.data.gov.uk/id/local-authority/30UE,Development Control,1091,Customer & Digital,Professional Fees,40063,Services,5027,app support,19/10/2016,115228,"4,331.70",Revenue,Urban Vision Partnership Ltd,21181
Chorley Borough Council,http://statistics.data.gov.uk/id/local-authority/30UE,Development Control,1091,Customer & Digital,Professional Fees,40063,Services,5027,app support,19/10/2016,115229,735.75,Revenue,Urban Vision Partnership Ltd,21181
Chorley Borough Council,http://statistics.data.gov.uk/id/local-authority/30UE,Development Control,1091,Customer & Digital,Professional Fees,40063,Services,5027,Professional Fees,12/10/2016,115990,"3,232.90",Revenue,Urban Vision Partnership Ltd,21181
Chorley Borough Council,http://statistics.data.gov.uk/id/local-authority/30UE,Development Control,1091,Customer & Digital,Professional Fees,40063,Services,5027,Professional Fees,12/10/2016,115991,463.25,Revenue,Urban Vision Partnership Ltd,21181
Chorley Borough Council,http://statistics.data.gov.uk/id/local-authority/30UE,Development Control,1091,Customer & Digital,Professional Fees,40063,Services,5027,Professional Fees,12/10/2016,115992,"4,661.60",Revenue,Urban Vision Partnership Ltd,21181
Chorley Borough Council,http://statistics.data.gov.uk/id/local-authority/30UE,Development Control,1091,Customer & Digital,Professional Fees,40063,Services,5027,Professional Fees,12/10/2016,115993,"7,168.45",Revenue,Urban Vision Partnership Ltd,21181
Chorley Borough Council,http://statistics.data.gov.uk/id/local-authority/30UE,Development Control,1091,Customer & Digital,Professional Fees,40063,Services,5027,planning app support,19/10/2016,116356,"1,448.39",Revenue,Urban Vision Partnership Ltd,21181
Chorley Borough Council,http://statistics.data.gov.uk/id/local-authority/30UE,Development Control,1091,Customer & Digital,Professional Fees,40063,Services,5027,planning support,26/10/2016,116480,"4,327.30",Revenue,Urban Vision Partnership Ltd,21181
Chorley Borough Council,http://statistics.data.gov.uk/id/local-authority/30UE,Unapportionable Central OHeads,1009,Policy & Governance,Miscellaneous Expenses,40200,Miscellaneous Expenses,5034,Group Travel Show cost of the exhibition stand,19/10/2016,116009,"1,035.00",Revenue,USL Trading,20982
Chorley Borough Council,http://statistics.data.gov.uk/id/local-authority/30UE,Unapportionable Central OHeads,1009,Policy & Governance,Miscellaneous Expenses,40200,Miscellaneous Expenses,5034,Group Travel Show cost of the exhibition stand,28/10/2016,116554,"1,035.00",Revenue,USL Trading,20982
Chorley Borough Council,http://statistics.data.gov.uk/id/local-authority/30UE,Central Support Services,1009,Customer & Digital,Internet Charges,40104,Communication and Computing,5028,telephony charges,26/10/2016,116440,"1,419.77",Revenue,Virgin Media Payments Ltd,17632
Chorley Borough Council,http://statistics.data.gov.uk/id/local-authority/30UE,Central Support Services,1009,Customer & Digital,Computer Equipment - Security,40106,Communication and Computing,5028,charges,07/10/2016,116003,"2,414.73",Revenue,Vodafone Ltd,60180
Chorley Borough Council,http://statistics.data.gov.uk/id/local-authority/30UE,Service Management & Support,1009,Customer & Digital,Supplies-Grounds Maintenance,40025,"Equipment, Furniture & Materia",5023,Spring bedding plants and bulbs 2017,26/10/2016,116524,"4,398.79",Revenue,Walkers Oakfield Nurseries,63090
Chorley Borough Council,http://statistics.data.gov.uk/id/local-authority/30UE,Business Support,1095,Business Development & Growth,Professional Fees,40063,Services,5027,Lighting scheme design for Stump Lane car park.,14/10/2016,116104,395.00,Revenue,Walmsley Associates Ltd,75156
Chorley Borough Council,http://statistics.data.gov.uk/id/local-authority/30UE,Business Support,1095,Business Development & Growth,Grants To Other Organisations,40127,Grants and Subscriptions,5031,sib grant,12/10/2016,116135,250.00,Revenue,NAME REDACTED,76303
Chorley Borough Council,http://statistics.data.gov.uk/id/local-authority/30UE,Unapportionable Central OHeads,1009,Chief Executive,Postages,40082,Communication and Computing,5028,"Mail Collection for Town Hall and Union Street, April 2016 - March 2017",19/10/2016,116351,282.64,Revenue,Whistl North Limited,67256
Chorley Borough Council,http://statistics.data.gov.uk/id/local-authority/30UE,Unapportionable Central OHeads,1009,Chief Executive,Postages,40082,Communication and Computing,5028,"Mail Collection for Town Hall and Union Street, April 2016 - March 2017",19/10/2016,116359,325.02,Revenue,Whistl North Limited,67256
Chorley Borough Council,http://statistics.data.gov.uk/id/local-authority/30UE,Unapportionable Central OHeads,1009,Chief Executive,Postages,40082,Communication and Computing,5028,"Mail Collection for Town Hall and Union Street, April 2016 - March 2017",19/10/2016,116360,391.50,Revenue,Whistl North Limited,67256
Chorley Borough Council,http://statistics.data.gov.uk/id/local-authority/30UE,Business Support,1095,Business Development & Growth,Rent/Hire Of Premises,20017,Premises Rents,5007,Quarterly rent for Royal Oak for the period 29/9/16 to 24/12/16.,28/10/2016,116230,"13,750.00",Revenue,Whittle Jones Group Ltd,75356
Chorley Borough Council,http://statistics.data.gov.uk/id/local-authority/30UE,Capital,Capital,Customer & Digital,Main Contractor,3007,Capital Expenditure,Capital,retention,05/10/2016,116039,"1,036.80",Capital,Wicksteed Leisure Ltd,18007
Chorley Borough Council,http://statistics.data.gov.uk/id/local-authority/30UE,Service Management & Support,1009,Customer & Digital,Supplies-Grounds Maintenance,40025,"Equipment, Furniture & Materia",5023,FAO  NAMES REDACTED .Donation for supply of injection system as agreed.,14/10/2016,116207,250.00,Revenue,Wildlife Trust for Lancs Manchester & N Merseyside,20377
Chorley Borough Council,http://statistics.data.gov.uk/id/local-authority/30UE,Democratic Represent and  Mgnt,1007,Business Development & Growth,Maintenance/Nature Reserves,20045,Grounds Maintenance Costs,5013,Chorley Council contribution towards the INNS (Invasive Non Native Species) project.,14/10/2016,116223,"4,000.00",Revenue,Wildlife Trust for Lancs Manchester & N Merseyside,20377
Chorley Borough Council,http://statistics.data.gov.uk/id/local-authority/30UE,Capital,Capital,Policy & Governance,Purchase Money,3027,Capital Expenditure,Capital,purchase Buckshaw villag cc,25/10/2016,115817,"433,050.00",Capital,Workspace Properties Ltd,72074
Chorley Borough Council,http://statistics.data.gov.uk/id/local-authority/30UE,Service Management & Support,1009,Customer & Digital,Vehicle Maintenance,30045,Direct Transport Costs,5016,Carryout pre MOT inspection and repairs take for annual test as requested on NU08KOJ,26/10/2016,116411,441.77,Revenue,Wrekamendid Services Ltd,21188
Chorley Borough Council,http://statistics.data.gov.uk/id/local-authority/30UE,Service Management & Support,1009,Customer & Digital,Vehicle Maintenance,30045,Direct Transport Costs,5016,mot,26/10/2016,116411,30.00,Revenue,Wrekamendid Services Ltd,21188
Chorley Borough Council,http://statistics.data.gov.uk/id/local-authority/30UE,Unapportionable Central OHeads,1009,Customer & Digital,Photocopier Charges,40047,"Printing, Stationery & General",5026,oct-jan,28/10/2016,116622,384.08,Revenue,Xeretec Document Solutions,20052
